Department Family,Entity,Date,Expense Type,Expense Area,Supplier,Transaction Number,AP Amount,Supplier Postcode,VAT Registration Number,Purchase Invoice Number
Department of Health,St. Helens&Knowsley Hospitals NHS Trust,30/06/2023,Catering Equip Disposable,GEN MED ENDOSCOPY H2,BOSTON SCIENTIFIC LTD,44929946,"29,108.61",HP2 4TZ,896105403,7162621606
Department of Health,St. Helens&Knowsley Hospitals NHS Trust,30/06/2023,Catering Equip Disposable,GEN MED ENDOSCOPY H2,BOSTON SCIENTIFIC LTD,44929946,"5,821.73",HP2 4TZ,896105403,7162621606
Department of Health,St. Helens&Knowsley Hospitals NHS Trust,30/06/2023,Computer Hardware Purch,ETTF,CDW LTD,47136926,"8,437.50",EC4M 9AF,GB902194939,PSINV03979535
Department of Health,St. Helens&Knowsley Hospitals NHS Trust,30/06/2023,Computer Hardware Purch,ETTF,CDW LTD,47136926,"6,387.60",EC4M 9AF,GB902194939,PSINV03979535
Department of Health,St. Helens&Knowsley Hospitals NHS Trust,30/06/2023,Computer Hardware Purch,ETTF,CDW LTD,47136926,895.69,EC4M 9AF,GB902194939,PSINV03979535
Department of Health,St. Helens&Knowsley Hospitals NHS Trust,30/06/2023,Computer Hardware Purch,ETTF,CDW LTD,47136926,"49,360.00",EC4M 9AF,GB902194939,PSINV03979535
Department of Health,St. Helens&Knowsley Hospitals NHS Trust,30/06/2023,Computer Hardware Purch,ETTF,CDW LTD,47136926,224.03,EC4M 9AF,GB902194939,PSINV03979535
Department of Health,St. Helens&Knowsley Hospitals NHS Trust,30/06/2023,Computer Hardware Purch,ETTF,CDW LTD,47136926,"8,895.60",EC4M 9AF,GB902194939,PSINV03979535
Department of Health,St. Helens&Knowsley Hospitals NHS Trust,30/06/2023,Computer Hardware Purch,ETTF,CDW LTD,47136926,"7,211.70",EC4M 9AF,GB902194939,PSINV03979535
Department of Health,St. Helens&Knowsley Hospitals NHS Trust,30/06/2023,Computer Hardware Purch,ETTF,CDW LTD,47136926,"5,284.85",EC4M 9AF,GB902194939,PSINV03979535
Department of Health,St. Helens&Knowsley Hospitals NHS Trust,30/06/2023,Computer Hardware Purch,ETTF,CDW LTD,47136926,"11,237.26",EC4M 9AF,GB902194939,PSINV03979535
Department of Health,St. Helens&Knowsley Hospitals NHS Trust,30/06/2023,Computer Hardware Purch,ETTF,CDW LTD,47136926,507.49,EC4M 9AF,GB902194939,PSINV03979535
Department of Health,St. Helens&Knowsley Hospitals NHS Trust,30/06/2023,Computer Hardware Purch,ETTF,CDW LTD,47136926,507.49,EC4M 9AF,GB902194939,PSINV03979535
Department of Health,St. Helens&Knowsley Hospitals NHS Trust,30/06/2023,Computer Hardware Purch,ETTF,CDW LTD,47136926,"1,521.00",EC4M 9AF,GB902194939,PSINV03979535
Department of Health,St. Helens&Knowsley Hospitals NHS Trust,30/06/2023,Computer Hardware Purch,ETTF,CDW LTD,47136926,"20,094.04",EC4M 9AF,GB902194939,PSINV03979535
Department of Health,St. Helens&Knowsley Hospitals NHS Trust,30/06/2023,Computer Hardware Purch,ETTF,CDW LTD,47154209,"44,045.76",EC4M 9AF,GB902194939,PSINV03979678
Department of Health,St. Helens&Knowsley Hospitals NHS Trust,30/06/2023,Computer Hardware Purch,ETTF,CDW LTD,47154209,"49,360.00",EC4M 9AF,GB902194939,PSINV03979678
Department of Health,St. Helens&Knowsley Hospitals NHS Trust,30/06/2023,Computer Hardware Purch,ETTF,CDW LTD,47154209,"13,996.04",EC4M 9AF,GB902194939,PSINV03979678
Department of Health,St. Helens&Knowsley Hospitals NHS Trust,30/06/2023,Computer Hardware Purch,ETTF,CDW LTD,47154209,"5,117.96",EC4M 9AF,GB902194939,PSINV03979678
Department of Health,St. Helens&Knowsley Hospitals NHS Trust,30/06/2023,Computer Hardware Purch,ETTF,CDW LTD,47154209,"4,116.62",EC4M 9AF,GB902194939,PSINV03979678
Department of Health,St. Helens&Knowsley Hospitals NHS Trust,30/06/2023,Computer Hardware Purch,ETTF,CDW LTD,47154209,"10,069.03",EC4M 9AF,GB902194939,PSINV03979678
Department of Health,St. Helens&Knowsley Hospitals NHS Trust,30/06/2023,Computer Hardware Purch,ETTF,CDW LTD,47154209,614.33,EC4M 9AF,GB902194939,PSINV03979678
Department of Health,St. Helens&Knowsley Hospitals NHS Trust,30/06/2023,Computer Hardware Purch,ETTF,CDW LTD,47154209,"1,148.53",EC4M 9AF,GB902194939,PSINV03979678
Department of Health,St. Helens&Knowsley Hospitals NHS Trust,30/06/2023,Computer Hardware Purch,ETTF,CDW LTD,47154209,"33,641.52",EC4M 9AF,GB902194939,PSINV03979678
Department of Health,St. Helens&Knowsley Hospitals NHS Trust,30/06/2023,Computer Hardware Purch,ETTF,CDW LTD,47154209,"32,421.96",EC4M 9AF,GB902194939,PSINV03979678
Department of Health,St. Helens&Knowsley Hospitals NHS Trust,30/06/2023,Computer Hardware Purch,MMDA PROGRAMME COSTS - SHARED SERVICES,VIRGIN MEDIA LTD,47234629,"192,181.62",BD4 8PW,Gb 591819014,60050785
Department of Health,St. Helens&Knowsley Hospitals NHS Trust,30/06/2023,Computer Hardware Purch,ETTF,CDW LTD,47430059,"84,103.80",EC4M 9AF,GB902194939,UKSI03999386
Department of Health,St. Helens&Knowsley Hospitals NHS Trust,30/06/2023,Computer Hardware Purch,ETTF,CDW LTD,47430059,"7,917.00",EC4M 9AF,GB902194939,UKSI03999386
Department of Health,St. Helens&Knowsley Hospitals NHS Trust,30/06/2023,Computer Hardware Purch,ETTF,CDW LTD,47430059,"3,206.40",EC4M 9AF,GB902194939,UKSI03999386
Department of Health,St. Helens&Knowsley Hospitals NHS Trust,30/06/2023,Computer Hardware Purch,ETTF,CDW LTD,47430059,"19,045.44",EC4M 9AF,GB902194939,UKSI03999386
Department of Health,St. Helens&Knowsley Hospitals NHS Trust,30/06/2023,Computer Hardware Purch,TRUST RECHARGES,VODAFONE LTD,47443244,6.00,RG14 5FF,GB 569 9532 77,103756334
Department of Health,St. Helens&Knowsley Hospitals NHS Trust,30/06/2023,Computer Hardware Purch,TRUST RECHARGES,VODAFONE LTD,47443244,30.00,RG14 5FF,GB 569 9532 77,103756334
Department of Health,St. Helens&Knowsley Hospitals NHS Trust,30/06/2023,Computer Maintenance,HUMAN RESOURCES - RESOURCING,CIVICA UK LTD,47154238,"27,916.85",DY1 4TD,GB 391171065,CRC274978
Department of Health,St. Helens&Knowsley Hospitals NHS Trust,30/06/2023,Computer Maintenance,HUMAN RESOURCES - RESOURCING,CIVICA UK LTD,47154238,539.77,DY1 4TD,GB 391171065,CRC274978
Department of Health,St. Helens&Knowsley Hospitals NHS Trust,30/06/2023,Computer Maintenance,MMDA PROGRAMME COSTS - SHARED SERVICES,CCUBE SOLUTIONS LTD,47325418,"66,313.25",MK15 0DU,816243248,INV0089
Department of Health,St. Helens&Knowsley Hospitals NHS Trust,30/06/2023,Computer Maintenance,MMDA PROGRAMME COSTS - SHARED SERVICES,CCUBE SOLUTIONS LTD,47325418,"13,262.65",MK15 0DU,816243248,INV0089
Department of Health,St. Helens&Knowsley Hospitals NHS Trust,30/06/2023,Computer Maintenance,TRUST IT SYSTEMS,CIS ONCOLOGY LTD,47331381,"31,170.56",BT3 9DT,902185450,10373
Department of Health,St. Helens&Knowsley Hospitals NHS Trust,30/06/2023,Computer Maintenance,TRUST IT SYSTEMS,CIS ONCOLOGY LTD,47331381,"6,234.11",BT3 9DT,902185450,10373
Department of Health,St. Helens&Knowsley Hospitals NHS Trust,30/06/2023,Computer Maintenance,MMDA PROGRAMME COSTS - SHARED SERVICES,CAREFLOW MEDICINES MANAGEMENT LTD,47416233,"140,050.00",SS15 6TH,GB 927438206,034467
Department of Health,St. Helens&Knowsley Hospitals NHS Trust,30/06/2023,Computer Maintenance,MMDA PROGRAMME COSTS - SHARED SERVICES,CAREFLOW MEDICINES MANAGEMENT LTD,47416233,"28,010.00",SS15 6TH,GB 927438206,034467
Department of Health,St. Helens&Knowsley Hospitals NHS Trust,30/06/2023,Continence Products,COMMUNITY CONTINENCE SERVICE,ESSITY UK LTD,47287610,"-26,209.25",LU6 3EJ,GB 600 4331 06,6470128515
Department of Health,St. Helens&Knowsley Hospitals NHS Trust,30/06/2023,Continence Products,COMMUNITY CONTINENCE SERVICE,ESSITY UK LTD,47413763,"60,676.25",LU6 3EJ,GB 600 4331 06,6402123814
Department of Health,St. Helens&Knowsley Hospitals NHS Trust,30/06/2023,Course Fees,ORGANISATIONAL L And D,UK MEDIATION LTD,47173410,"22,730.00",DE56 1UU,828901412,18174
Department of Health,St. Helens&Knowsley Hospitals NHS Trust,30/06/2023,Course Fees,MMDA PROGRAMME COSTS - SHARED SERVICES,QA LTD,47241253,"37,500.00",LS12 6BD,864455303,QASIN000301706
Department of Health,St. Helens&Knowsley Hospitals NHS Trust,30/06/2023,Equip Maint Contracts,RADIOGRAPHY WHISTON,4 WAYS HEALTHCARE LTD,46939180,"26,933.66",HP2 7BF,828833692,4WHC01240073
Department of Health,St. Helens&Knowsley Hospitals NHS Trust,30/06/2023,Equip Maint Contracts,RADIOGRAPHY WHISTON,4 WAYS HEALTHCARE LTD,47234632,"30,084.90",HP2 7SJ,828833692,4WHC02240073
Department of Health,St. Helens&Knowsley Hospitals NHS Trust,30/06/2023,External Contractors,ST HELENS UTC,ST HELENS ROTA,47303363,"40,075.96",WA10 2HU,,3496
Department of Health,St. Helens&Knowsley Hospitals NHS Trust,30/06/2023,Independent Sector,LLP,ST HELENS ORTHOPAEDICS,47337757,"204,161.41",WA10 3TP,,112
Department of Health,St. Helens&Knowsley Hospitals NHS Trust,30/06/2023,Interpreting services,A + E NURSING WHISTON,DA LANGUAGES LTD,47196126,"1,050.84",M32 0FP,293366572,I0314365
Department of Health,St. Helens&Knowsley Hospitals NHS Trust,30/06/2023,Interpreting services,AUDIOLOGY,DA LANGUAGES LTD,47196126,68.58,M32 0FP,293366572,I0314365
Department of Health,St. Helens&Knowsley Hospitals NHS Trust,30/06/2023,Interpreting services,B + P DRESSINGS CLINIC,DA LANGUAGES LTD,47196126,386.16,M32 0FP,293366572,I0314365
Department of Health,St. Helens&Knowsley Hospitals NHS Trust,30/06/2023,Interpreting services,B + P MEDICAL STAFF,DA LANGUAGES LTD,47196126,718.08,M32 0FP,293366572,I0314365
Department of Health,St. Helens&Knowsley Hospitals NHS Trust,30/06/2023,Interpreting services,CANCER CORE STAFF AND NON-PAY,DA LANGUAGES LTD,47196126,825.90,M32 0FP,293366572,I0314365
Department of Health,St. Helens&Knowsley Hospitals NHS Trust,30/06/2023,Interpreting services,CARDIO-RESPIRATORY (ECG),DA LANGUAGES LTD,47196126,355.08,M32 0FP,293366572,I0314365
Department of Health,St. Helens&Knowsley Hospitals NHS Trust,30/06/2023,Interpreting services,COMMUNITY CARDIAC TEAM,DA LANGUAGES LTD,47196126,97.32,M32 0FP,293366572,I0314365
Department of Health,St. Helens&Knowsley Hospitals NHS Trust,30/06/2023,Interpreting services,COMMUNITY CONTINENCE SERVICE,DA LANGUAGES LTD,47196126,91.20,M32 0FP,293366572,I0314365
Department of Health,St. Helens&Knowsley Hospitals NHS Trust,30/06/2023,Interpreting services,COMMUNITY MIDWIFERY,DA LANGUAGES LTD,47196126,139.32,M32 0FP,293366572,I0314365
Department of Health,St. Helens&Knowsley Hospitals NHS Trust,30/06/2023,Interpreting services,DELIVERY SUITE,DA LANGUAGES LTD,47196126,482.76,M32 0FP,293366572,I0314365
Department of Health,St. Helens&Knowsley Hospitals NHS Trust,30/06/2023,Interpreting services,DERMATOLOGY,DA LANGUAGES LTD,47196126,280.92,M32 0FP,293366572,I0314365
Department of Health,St. Helens&Knowsley Hospitals NHS Trust,30/06/2023,Interpreting services,DIABETES NURSING,DA LANGUAGES LTD,47196126,881.91,M32 0FP,293366572,I0314365
Department of Health,St. Helens&Knowsley Hospitals NHS Trust,30/06/2023,Interpreting services,ENT MEDICAL STAFF,DA LANGUAGES LTD,47196126,"1,276.02",M32 0FP,293366572,I0314365
Department of Health,St. Helens&Knowsley Hospitals NHS Trust,30/06/2023,Interpreting services,FETO MAT ASSESSMENT UNIT,DA LANGUAGES LTD,47196126,100.44,M32 0FP,293366572,I0314365
Department of Health,St. Helens&Knowsley Hospitals NHS Trust,30/06/2023,Interpreting services,GASTROLOGY SNR MEDICAL,DA LANGUAGES LTD,47196126,633.54,M32 0FP,293366572,I0314365
Department of Health,St. Helens&Knowsley Hospitals NHS Trust,30/06/2023,Interpreting services,GEN MED ENDOSCOPY H2,DA LANGUAGES LTD,47196126,"1,415.58",M32 0FP,293366572,I0314365
Department of Health,St. Helens&Knowsley Hospitals NHS Trust,30/06/2023,Interpreting services,GENERAL SURGERY MEDICAL,DA LANGUAGES LTD,47196126,"1,864.62",M32 0FP,293366572,I0314365
Department of Health,St. Helens&Knowsley Hospitals NHS Trust,30/06/2023,Interpreting services,GYNAE OUTPATIEN ST HELENS,DA LANGUAGES LTD,47196126,513.36,M32 0FP,293366572,I0314365
Department of Health,St. Helens&Knowsley Hospitals NHS Trust,30/06/2023,Interpreting services,GYNAECOLOGY OPD WHISTON,DA LANGUAGES LTD,47196126,"2,027.52",M32 0FP,293366572,I0314365
Department of Health,St. Helens&Knowsley Hospitals NHS Trust,30/06/2023,Interpreting services,HAEMATOLOGY MEDICAL,DA LANGUAGES LTD,47196126,168.60,M32 0FP,293366572,I0314365
Department of Health,St. Helens&Knowsley Hospitals NHS Trust,30/06/2023,Interpreting services,MARSHALLS CROSS MEDICAL CENTRE,DA LANGUAGES LTD,47196126,120.00,M32 0FP,293366572,I0314365
Department of Health,St. Helens&Knowsley Hospitals NHS Trust,30/06/2023,Interpreting services,NEUROPHYSIOLOGY (EEG),DA LANGUAGES LTD,47196126,65.88,M32 0FP,293366572,I0314365
Department of Health,St. Helens&Knowsley Hospitals NHS Trust,30/06/2023,Interpreting services,NEWTON HOSPITAL OP,DA LANGUAGES LTD,47196126,182.76,M32 0FP,293366572,I0314365
Department of Health,St. Helens&Knowsley Hospitals NHS Trust,30/06/2023,Interpreting services,OBSTETRICS WARD 2E,DA LANGUAGES LTD,47196126,276.00,M32 0FP,293366572,I0314365
Department of Health,St. Helens&Knowsley Hospitals NHS Trust,30/06/2023,Interpreting services,OPHTH RENNIE EYE CLINIC,DA LANGUAGES LTD,47196126,137.16,M32 0FP,293366572,I0314365
Department of Health,St. Helens&Knowsley Hospitals NHS Trust,30/06/2023,Interpreting services,OPHTHALMOLOGY MEDICAL,DA LANGUAGES LTD,47196126,"1,725.66",M32 0FP,293366572,I0314365
Department of Health,St. Helens&Knowsley Hospitals NHS Trust,30/06/2023,Interpreting services,ORTHODONTICS & ORAL & FACIAL SURGERY,DA LANGUAGES LTD,47196126,64.26,M32 0FP,293366572,I0314365
Department of Health,St. Helens&Knowsley Hospitals NHS Trust,30/06/2023,Interpreting services,ORTHOPAEDIC MEDICAL STAFF,DA LANGUAGES LTD,47196126,901.44,M32 0FP,293366572,I0314365
Department of Health,St. Helens&Knowsley Hospitals NHS Trust,30/06/2023,Interpreting services,ORTHOPTICS DEPARTMENT,DA LANGUAGES LTD,47196126,454.14,M32 0FP,293366572,I0314365
Department of Health,St. Helens&Knowsley Hospitals NHS Trust,30/06/2023,Interpreting services,OUTPATIENTS ST HELENS,DA LANGUAGES LTD,47196126,68.04,M32 0FP,293366572,I0314365
Department of Health,St. Helens&Knowsley Hospitals NHS Trust,30/06/2023,Interpreting services,OUTPATIENTS WHISTON,DA LANGUAGES LTD,47196126,180.42,M32 0FP,293366572,I0314365
Department of Health,St. Helens&Knowsley Hospitals NHS Trust,30/06/2023,Interpreting services,PAEDIATRIC MEDICAL STAFF,DA LANGUAGES LTD,47196126,433.67,M32 0FP,293366572,I0314365
Department of Health,St. Helens&Knowsley Hospitals NHS Trust,30/06/2023,Interpreting services,PRE OP SCG,DA LANGUAGES LTD,47196126,"1,998.84",M32 0FP,293366572,I0314365
Department of Health,St. Helens&Knowsley Hospitals NHS Trust,30/06/2023,Interpreting services,RADIOGRAPHY WHISTON,DA LANGUAGES LTD,47196126,"5,218.19",M32 0FP,293366572,I0314365
Department of Health,St. Helens&Knowsley Hospitals NHS Trust,30/06/2023,Interpreting services,RESPIRATORY SNR MEDICAL,DA LANGUAGES LTD,47196126,237.12,M32 0FP,293366572,I0314365
Department of Health,St. Helens&Knowsley Hospitals NHS Trust,30/06/2023,Interpreting services,RHEUMATOLOGY SNR MEDICAL,DA LANGUAGES LTD,47196126,597.66,M32 0FP,293366572,I0314365
Department of Health,St. Helens&Knowsley Hospitals NHS Trust,30/06/2023,Interpreting services,SANDERSON SUITE GENERAL SURGERY,DA LANGUAGES LTD,47196126,797.40,M32 0FP,293366572,I0314365
Department of Health,St. Helens&Knowsley Hospitals NHS Trust,30/06/2023,Interpreting services,SEXUAL HEALTH,DA LANGUAGES LTD,47196126,455.16,M32 0FP,293366572,I0314365
Department of Health,St. Helens&Knowsley Hospitals NHS Trust,30/06/2023,Interpreting services,ST HELENS UTC,DA LANGUAGES LTD,47196126,193.32,M32 0FP,293366572,I0314365
Department of Health,St. Helens&Knowsley Hospitals NHS Trust,30/06/2023,Interpreting services,THEATRES MEDICAL STAFF,DA LANGUAGES LTD,47196126,16.20,M32 0FP,293366572,I0314365
Department of Health,St. Helens&Knowsley Hospitals NHS Trust,30/06/2023,Interpreting services,THERAPY HAND SERVICE,DA LANGUAGES LTD,47196126,81.12,M32 0FP,293366572,I0314365
Department of Health,St. Helens&Knowsley Hospitals NHS Trust,30/06/2023,Interpreting services,THERAPY MANAGEMENT & ADMIN.,DA LANGUAGES LTD,47196126,"1,263.72",M32 0FP,293366572,I0314365
Department of Health,St. Helens&Knowsley Hospitals NHS Trust,30/06/2023,Interpreting services,UROLOGY MEDICAL STAFF,DA LANGUAGES LTD,47196126,"1,335.36",M32 0FP,293366572,I0314365
Department of Health,St. Helens&Knowsley Hospitals NHS Trust,30/06/2023,Interpreting services,VASCULAR SURGERY MEDICAL STAFF,DA LANGUAGES LTD,47196126,183.60,M32 0FP,293366572,I0314365
Department of Health,St. Helens&Knowsley Hospitals NHS Trust,30/06/2023,Interpreting services,WARD 1B ACUTE MEDICAL UNIT,DA LANGUAGES LTD,47196126,287.40,M32 0FP,293366572,I0314365
Department of Health,St. Helens&Knowsley Hospitals NHS Trust,30/06/2023,Interpreting services,WARD 1E CORONARY CARE UNIT,DA LANGUAGES LTD,47196126,37.80,M32 0FP,293366572,I0314365
Department of Health,St. Helens&Knowsley Hospitals NHS Trust,30/06/2023,Interpreting services,WARD 3A PLASTICS,DA LANGUAGES LTD,47196126,753.60,M32 0FP,293366572,I0314365
Department of Health,St. Helens&Knowsley Hospitals NHS Trust,30/06/2023,Interpreting services,WARD 3ALPHA ORTHOPAEDICS,DA LANGUAGES LTD,47196126,97.86,M32 0FP,293366572,I0314365
Department of Health,St. Helens&Knowsley Hospitals NHS Trust,30/06/2023,Interpreting services,WARD 3B ORTHOPAEDICS,DA LANGUAGES LTD,47196126,224.94,M32 0FP,293366572,I0314365
Department of Health,St. Helens&Knowsley Hospitals NHS Trust,30/06/2023,Interpreting services,WARD 3D GASTROENTEROLOGY,DA LANGUAGES LTD,47196126,100.20,M32 0FP,293366572,I0314365
Department of Health,St. Helens&Knowsley Hospitals NHS Trust,30/06/2023,Interpreting services,WARD 3E GYNAECOLOGY,DA LANGUAGES LTD,47196126,461.34,M32 0FP,293366572,I0314365
Department of Health,St. Helens&Knowsley Hospitals NHS Trust,30/06/2023,Interpreting services,WARD 4A GENERAL SURGERY,DA LANGUAGES LTD,47196126,"1,077.12",M32 0FP,293366572,I0314365
Department of Health,St. Helens&Knowsley Hospitals NHS Trust,30/06/2023,Interpreting services,WARD 4B GENERAL SURGERY,DA LANGUAGES LTD,47196126,996.00,M32 0FP,293366572,I0314365
Department of Health,St. Helens&Knowsley Hospitals NHS Trust,30/06/2023,Interpreting services,WARD 4C GENERAL SURGERY,DA LANGUAGES LTD,47196126,128.88,M32 0FP,293366572,I0314365
Department of Health,St. Helens&Knowsley Hospitals NHS Trust,30/06/2023,Interpreting services,WARD 4D BURNS,DA LANGUAGES LTD,47196126,101.52,M32 0FP,293366572,I0314365
Department of Health,St. Helens&Knowsley Hospitals NHS Trust,30/06/2023,Interpreting services,WARD 4F PAEDIATRICS,DA LANGUAGES LTD,47196126,51.84,M32 0FP,293366572,I0314365
Department of Health,St. Helens&Knowsley Hospitals NHS Trust,30/06/2023,Interpreting services,WARD 5D ASU,DA LANGUAGES LTD,47196126,23.76,M32 0FP,293366572,I0314365
Department of Health,St. Helens&Knowsley Hospitals NHS Trust,30/06/2023,Interpreting services,WOMENS OPD,DA LANGUAGES LTD,47196126,"3,465.60",M32 0FP,293366572,I0314365
Department of Health,St. Helens&Knowsley Hospitals NHS Trust,30/06/2023,Interpreting services,A + E NURSING WHISTON,DA LANGUAGES LTD,47395346,606.96,M32 0FP,293366572,I0317423
Department of Health,St. Helens&Knowsley Hospitals NHS Trust,30/06/2023,Interpreting services,AUDIOLOGY,DA LANGUAGES LTD,47395346,503.76,M32 0FP,293366572,I0317423
Department of Health,St. Helens&Knowsley Hospitals NHS Trust,30/06/2023,Interpreting services,B + P DRESSINGS CLINIC,DA LANGUAGES LTD,47395346,187.02,M32 0FP,293366572,I0317423
Department of Health,St. Helens&Knowsley Hospitals NHS Trust,30/06/2023,Interpreting services,B + P MEDICAL STAFF,DA LANGUAGES LTD,47395346,"1,206.30",M32 0FP,293366572,I0317423
Department of Health,St. Helens&Knowsley Hospitals NHS Trust,30/06/2023,Interpreting services,BEVAN COURT 1,DA LANGUAGES LTD,47395346,303.54,M32 0FP,293366572,I0317423
Department of Health,St. Helens&Knowsley Hospitals NHS Trust,30/06/2023,Interpreting services,CANCER CORE STAFF AND NON-PAY,DA LANGUAGES LTD,47395346,322.38,M32 0FP,293366572,I0317423
Department of Health,St. Helens&Knowsley Hospitals NHS Trust,30/06/2023,Interpreting services,CARDIO-RESPIRATORY (ECG),DA LANGUAGES LTD,47395346,239.82,M32 0FP,293366572,I0317423
Department of Health,St. Helens&Knowsley Hospitals NHS Trust,30/06/2023,Interpreting services,CARDIOLOGY NURSING,DA LANGUAGES LTD,47395346,207.90,M32 0FP,293366572,I0317423
Department of Health,St. Helens&Knowsley Hospitals NHS Trust,30/06/2023,Interpreting services,CARDIOLOGY SNR MEDICAL,DA LANGUAGES LTD,47395346,292.86,M32 0FP,293366572,I0317423
Department of Health,St. Helens&Knowsley Hospitals NHS Trust,30/06/2023,Interpreting services,CLINICAL PSYCHOLOGY,DA LANGUAGES LTD,47395346,32.40,M32 0FP,293366572,I0317423
Department of Health,St. Helens&Knowsley Hospitals NHS Trust,30/06/2023,Interpreting services,COMMUNITY CARDIAC TEAM,DA LANGUAGES LTD,47395346,29.16,M32 0FP,293366572,I0317423
Department of Health,St. Helens&Knowsley Hospitals NHS Trust,30/06/2023,Interpreting services,COMMUNITY MIDWIFERY,DA LANGUAGES LTD,47395346,204.12,M32 0FP,293366572,I0317423
Department of Health,St. Helens&Knowsley Hospitals NHS Trust,30/06/2023,Interpreting services,COMMUNITY PAEDIATRICS,DA LANGUAGES LTD,47395346,144.18,M32 0FP,293366572,I0317423
Department of Health,St. Helens&Knowsley Hospitals NHS Trust,30/06/2023,Interpreting services,DELIVERY SUITE,DA LANGUAGES LTD,47395346,504.36,M32 0FP,293366572,I0317423
Department of Health,St. Helens&Knowsley Hospitals NHS Trust,30/06/2023,Interpreting services,DERMATOLOGY,DA LANGUAGES LTD,47395346,"1,176.96",M32 0FP,293366572,I0317423
Department of Health,St. Helens&Knowsley Hospitals NHS Trust,30/06/2023,Interpreting services,DIABETES NURSING,DA LANGUAGES LTD,47395346,630.96,M32 0FP,293366572,I0317423
Department of Health,St. Helens&Knowsley Hospitals NHS Trust,30/06/2023,Interpreting services,ENT MEDICAL STAFF,DA LANGUAGES LTD,47395346,"1,500.30",M32 0FP,293366572,I0317423
Department of Health,St. Helens&Knowsley Hospitals NHS Trust,30/06/2023,Interpreting services,GASTROLOGY SNR MEDICAL,DA LANGUAGES LTD,47395346,"1,601.82",M32 0FP,293366572,I0317423
Department of Health,St. Helens&Knowsley Hospitals NHS Trust,30/06/2023,Interpreting services,GEN MED ENDOSCOPY H2,DA LANGUAGES LTD,47395346,"1,100.64",M32 0FP,293366572,I0317423
Department of Health,St. Helens&Knowsley Hospitals NHS Trust,30/06/2023,Interpreting services,GENERAL SURGERY MEDICAL,DA LANGUAGES LTD,47395346,"1,458.36",M32 0FP,293366572,I0317423
Department of Health,St. Helens&Knowsley Hospitals NHS Trust,30/06/2023,Interpreting services,GYNAE OUTPATIEN ST HELENS,DA LANGUAGES LTD,47395346,567.66,M32 0FP,293366572,I0317423
Department of Health,St. Helens&Knowsley Hospitals NHS Trust,30/06/2023,Interpreting services,GYNAECOLOGY OPD WHISTON,DA LANGUAGES LTD,47395346,"1,882.14",M32 0FP,293366572,I0317423
Department of Health,St. Helens&Knowsley Hospitals NHS Trust,30/06/2023,Interpreting services,HAEMATOLOGY MEDICAL,DA LANGUAGES LTD,47395346,442.20,M32 0FP,293366572,I0317423
Department of Health,St. Helens&Knowsley Hospitals NHS Trust,30/06/2023,Interpreting services,ICU MEDICAL STAFF WHISTON,DA LANGUAGES LTD,47395346,162.48,M32 0FP,293366572,I0317423
Department of Health,St. Helens&Knowsley Hospitals NHS Trust,30/06/2023,Interpreting services,NEUROPHYSIOLOGY (EEG),DA LANGUAGES LTD,47395346,198.72,M32 0FP,293366572,I0317423
Department of Health,St. Helens&Knowsley Hospitals NHS Trust,30/06/2023,Interpreting services,NEUROSURGERY - MEDICAL STAFF,DA LANGUAGES LTD,47395346,98.94,M32 0FP,293366572,I0317423
Department of Health,St. Helens&Knowsley Hospitals NHS Trust,30/06/2023,Interpreting services,NEWTON HOSPITAL OP,DA LANGUAGES LTD,47395346,60.48,M32 0FP,293366572,I0317423
Department of Health,St. Helens&Knowsley Hospitals NHS Trust,30/06/2023,Interpreting services,OBSTETRICS WARD 2E,DA LANGUAGES LTD,47395346,201.60,M32 0FP,293366572,I0317423
Department of Health,St. Helens&Knowsley Hospitals NHS Trust,30/06/2023,Interpreting services,OPHTH RENNIE EYE CLINIC,DA LANGUAGES LTD,47395346,223.62,M32 0FP,293366572,I0317423
Department of Health,St. Helens&Knowsley Hospitals NHS Trust,30/06/2023,Interpreting services,OPHTHALMOLOGY MEDICAL,DA LANGUAGES LTD,47395346,"1,983.60",M32 0FP,293366572,I0317423
Department of Health,St. Helens&Knowsley Hospitals NHS Trust,30/06/2023,Interpreting services,ORTHODONTICS & ORAL & FACIAL SURGERY,DA LANGUAGES LTD,47395346,256.02,M32 0FP,293366572,I0317423
Department of Health,St. Helens&Knowsley Hospitals NHS Trust,30/06/2023,Interpreting services,ORTHOPAEDIC MEDICAL STAFF,DA LANGUAGES LTD,47395346,946.92,M32 0FP,293366572,I0317423
Department of Health,St. Helens&Knowsley Hospitals NHS Trust,30/06/2023,Interpreting services,ORTHOPTICS DEPARTMENT,DA LANGUAGES LTD,47395346,533.16,M32 0FP,293366572,I0317423
Department of Health,St. Helens&Knowsley Hospitals NHS Trust,30/06/2023,Interpreting services,OUTPATIENTS ST HELENS,DA LANGUAGES LTD,47395346,16.20,M32 0FP,293366572,I0317423
Department of Health,St. Helens&Knowsley Hospitals NHS Trust,30/06/2023,Interpreting services,PAEDIATRIC CONTINENCE,DA LANGUAGES LTD,47395346,16.20,M32 0FP,293366572,I0317423
Department of Health,St. Helens&Knowsley Hospitals NHS Trust,30/06/2023,Interpreting services,PAEDIATRIC MEDICAL STAFF,DA LANGUAGES LTD,47395346,413.28,M32 0FP,293366572,I0317423
Department of Health,St. Helens&Knowsley Hospitals NHS Trust,30/06/2023,Interpreting services,PRE OP SCG,DA LANGUAGES LTD,47395346,"1,924.14",M32 0FP,293366572,I0317423
Department of Health,St. Helens&Knowsley Hospitals NHS Trust,30/06/2023,Interpreting services,RADIOGRAPHY WHISTON,DA LANGUAGES LTD,47395346,"5,484.96",M32 0FP,293366572,I0317423
Department of Health,St. Helens&Knowsley Hospitals NHS Trust,30/06/2023,Interpreting services,RESPIRATORY SNR MEDICAL,DA LANGUAGES LTD,47395346,328.56,M32 0FP,293366572,I0317423
Department of Health,St. Helens&Knowsley Hospitals NHS Trust,30/06/2023,Interpreting services,RHEUMATOLOGY NURSING OUTPATIENTS,DA LANGUAGES LTD,47395346,119.94,M32 0FP,293366572,I0317423
Department of Health,St. Helens&Knowsley Hospitals NHS Trust,30/06/2023,Interpreting services,RHEUMATOLOGY SNR MEDICAL,DA LANGUAGES LTD,47395346,461.16,M32 0FP,293366572,I0317423
Department of Health,St. Helens&Knowsley Hospitals NHS Trust,30/06/2023,Interpreting services,SANDERSON SUITE GENERAL SURGERY,DA LANGUAGES LTD,47395346,952.92,M32 0FP,293366572,I0317423
Department of Health,St. Helens&Knowsley Hospitals NHS Trust,30/06/2023,Interpreting services,SEXUAL HEALTH,DA LANGUAGES LTD,47395346,356.46,M32 0FP,293366572,I0317423
Department of Health,St. Helens&Knowsley Hospitals NHS Trust,30/06/2023,Interpreting services,ST HELENS UTC,DA LANGUAGES LTD,47395346,187.92,M32 0FP,293366572,I0317423
Department of Health,St. Helens&Knowsley Hospitals NHS Trust,30/06/2023,Interpreting services,THEATRES MEDICAL STAFF,DA LANGUAGES LTD,47395346,183.06,M32 0FP,293366572,I0317423
Department of Health,St. Helens&Knowsley Hospitals NHS Trust,30/06/2023,Interpreting services,THERAPY MANAGEMENT & ADMIN.,DA LANGUAGES LTD,47395346,"1,667.22",M32 0FP,293366572,I0317423
Department of Health,St. Helens&Knowsley Hospitals NHS Trust,30/06/2023,Interpreting services,UROLOGY MEDICAL STAFF,DA LANGUAGES LTD,47395346,"1,834.38",M32 0FP,293366572,I0317423
Department of Health,St. Helens&Knowsley Hospitals NHS Trust,30/06/2023,Interpreting services,VASCULAR SURGERY MEDICAL STAFF,DA LANGUAGES LTD,47395346,77.94,M32 0FP,293366572,I0317423
Department of Health,St. Helens&Knowsley Hospitals NHS Trust,30/06/2023,Interpreting services,WARD 1B ACUTE MEDICAL UNIT,DA LANGUAGES LTD,47395346,133.92,M32 0FP,293366572,I0317423
Department of Health,St. Helens&Knowsley Hospitals NHS Trust,30/06/2023,Interpreting services,WARD 1D CARDIOLOGY,DA LANGUAGES LTD,47395346,105.90,M32 0FP,293366572,I0317423
Department of Health,St. Helens&Knowsley Hospitals NHS Trust,30/06/2023,Interpreting services,WARD 2D GENERAL MEDICINE,DA LANGUAGES LTD,47395346,137.16,M32 0FP,293366572,I0317423
Department of Health,St. Helens&Knowsley Hospitals NHS Trust,30/06/2023,Interpreting services,WARD 3A PLASTICS,DA LANGUAGES LTD,47395346,426.42,M32 0FP,293366572,I0317423
Department of Health,St. Helens&Knowsley Hospitals NHS Trust,30/06/2023,Interpreting services,WARD 3E GYNAECOLOGY,DA LANGUAGES LTD,47395346,117.72,M32 0FP,293366572,I0317423
Department of Health,St. Helens&Knowsley Hospitals NHS Trust,30/06/2023,Interpreting services,WARD 3F PAEDIATRICS,DA LANGUAGES LTD,47395346,36.72,M32 0FP,293366572,I0317423
Department of Health,St. Helens&Knowsley Hospitals NHS Trust,30/06/2023,Interpreting services,WARD 4B GENERAL SURGERY,DA LANGUAGES LTD,47395346,"1,295.28",M32 0FP,293366572,I0317423
Department of Health,St. Helens&Knowsley Hospitals NHS Trust,30/06/2023,Interpreting services,WARD 4D BURNS,DA LANGUAGES LTD,47395346,137.16,M32 0FP,293366572,I0317423
Department of Health,St. Helens&Knowsley Hospitals NHS Trust,30/06/2023,Interpreting services,WARD 5C ACUTE STROKE UNIT (HASU),DA LANGUAGES LTD,47395346,149.34,M32 0FP,293366572,I0317423
Department of Health,St. Helens&Knowsley Hospitals NHS Trust,30/06/2023,Interpreting services,WARD 5D ASU,DA LANGUAGES LTD,47395346,304.80,M32 0FP,293366572,I0317423
Department of Health,St. Helens&Knowsley Hospitals NHS Trust,30/06/2023,Interpreting services,WOMENS OPD,DA LANGUAGES LTD,47395346,"3,350.52",M32 0FP,293366572,I0317423
Department of Health,St. Helens&Knowsley Hospitals NHS Trust,30/06/2023,IT Additions,Balance Sheet,DELL CORPORATION LTD,47511766,"26,908.00",RG12 1LF,635823528,7402927534
Department of Health,St. Helens&Knowsley Hospitals NHS Trust,30/06/2023,IT Additions,Balance Sheet,DELL CORPORATION LTD,47511766,214.00,RG12 1LF,635823528,7402927534
Department of Health,St. Helens&Knowsley Hospitals NHS Trust,30/06/2023,IT Additions,Balance Sheet,DELL CORPORATION LTD,47511766,"5,424.40",RG12 1LF,635823528,7402927534
Department of Health,St. Helens&Knowsley Hospitals NHS Trust,30/06/2023,Laboratory Chemicals,MICROBIOLOGY DEPT,UK HEALTH SECURITY AGENCY,46354774,"67,569.68",SP4 0JG,888851648,5041078
Department of Health,St. Helens&Knowsley Hospitals NHS Trust,30/06/2023,Laboratory Chemicals,MICROBIOLOGY DEPT,CHRYSTAL CONSULTING LTD,46904960,"85,553.51",M22 5HQ,,62727
Department of Health,St. Helens&Knowsley Hospitals NHS Trust,30/06/2023,Laboratory Chemicals,MICROBIOLOGY DEPT,CHRYSTAL CONSULTING LTD,46904960,"229,061.67",M22 5HQ,,62727
Department of Health,St. Helens&Knowsley Hospitals NHS Trust,30/06/2023,Laboratory Chemicals,MICROBIOLOGY DEPT,CHRYSTAL CONSULTING LTD,46904960,"89,411.86",M22 5HQ,,62727
Department of Health,St. Helens&Knowsley Hospitals NHS Trust,30/06/2023,Laboratory Chemicals,CHEMICAL PATHOLOGY DEPT,SIEMENS HEALTHCARE DIAGNOSTICS LTD,47231953,"189,452.94",GU15 3YL,636163443,115142625
Department of Health,St. Helens&Knowsley Hospitals NHS Trust,30/06/2023,Laboratory Chemicals,CHEMICAL PATHOLOGY DEPT,SIEMENS HEALTHCARE DIAGNOSTICS LTD,47231953,"37,890.59",GU15 3YL,636163443,115142625
Department of Health,St. Helens&Knowsley Hospitals NHS Trust,30/06/2023,Lease Rents,PFI DESIGN + CONSTRUCTION,MAPP PROPERTY MANAGEMENT LTD,47337778,"80,736.95",W1W 5QZ,,565000992
Department of Health,St. Helens&Knowsley Hospitals NHS Trust,30/06/2023,Med & Surg Equip Disp,GEN MED ENDOSCOPY H2,BOSTON SCIENTIFIC LTD,46054667,"23,397.04",HP2 4TZ,896105403,7162672215
Department of Health,St. Helens&Knowsley Hospitals NHS Trust,30/06/2023,Med & Surg Equip Hire,WHISTON EQUIPMENT POOL,MEDSTROM LTD,46939188,"67,824.25",DE74 2SA,885208793,143381
Department of Health,St. Helens&Knowsley Hospitals NHS Trust,30/06/2023,Med & Surg Equip Hire,WHISTON EQUIPMENT POOL,MEDSTROM LTD,47466814,"68,554.05",DE74 2SA,885208793,145388
Department of Health,St. Helens&Knowsley Hospitals NHS Trust,30/06/2023,Med & Surg Equip Hire,WHISTON EQUIPMENT POOL,MEDSTROM LTD,47466814,"13,710.81",DE74 2SA,885208793,145388
Department of Health,St. Helens&Knowsley Hospitals NHS Trust,30/06/2023,Miscellaneous Expenditure,HSDU WHISTON,SYNERGY HEALTH (UK) LTD,47154070,"219,551.52",DE21 6LY,706163456,124867
Department of Health,St. Helens&Knowsley Hospitals NHS Trust,30/06/2023,Miscellaneous Expenditure,PFI ENABLING WORKS,NEW HOSPITALS (ST HELENS & KNOWSLEY) LTD,47325105,"261,124.12",BR8 7AG,864464302,INV000101
Department of Health,St. Helens&Knowsley Hospitals NHS Trust,30/06/2023,Miscellaneous Expenditure,BEVAN COURT FM,NEW HOSPITALS (ST HELENS & KNOWSLEY) LTD,47337745,"106,118.60",BR8 7AG,864464302,INV000100
Department of Health,St. Helens&Knowsley Hospitals NHS Trust,30/06/2023,Miscellaneous Expenditure,IRREG MAINT WHISTON,ESOS ENERGY LTD,47426555,"47,610.00",BS1 3AG,202417948,11504
Department of Health,St. Helens&Knowsley Hospitals NHS Trust,30/06/2023,Mobile Phones,A + E MEDICAL STAFF WH,VODAFONE LTD,47443244,6.00,RG14 5FF,GB 569 9532 77,103756334
Department of Health,St. Helens&Knowsley Hospitals NHS Trust,30/06/2023,Mobile Phones,A + E MEDICAL STAFF WH,VODAFONE LTD,47443244,30.00,RG14 5FF,GB 569 9532 77,103756334
Department of Health,St. Helens&Knowsley Hospitals NHS Trust,30/06/2023,Mobile Phones,A + E NURSING WHISTON,VODAFONE LTD,47443244,6.00,RG14 5FF,GB 569 9532 77,103756334
Department of Health,St. Helens&Knowsley Hospitals NHS Trust,30/06/2023,Mobile Phones,A + E NURSING WHISTON,VODAFONE LTD,47443244,30.00,RG14 5FF,GB 569 9532 77,103756334
Department of Health,St. Helens&Knowsley Hospitals NHS Trust,30/06/2023,Mobile Phones,ACUTE KIDNEY INJURY SERVICE,VODAFONE LTD,47443244,18.98,RG14 5FF,GB 569 9532 77,103756334
Department of Health,St. Helens&Knowsley Hospitals NHS Trust,30/06/2023,Mobile Phones,ACUTE KIDNEY INJURY SERVICE,VODAFONE LTD,47443244,95.00,RG14 5FF,GB 569 9532 77,103756334
Department of Health,St. Helens&Knowsley Hospitals NHS Trust,30/06/2023,Mobile Phones,ACUTE MEDICAL UNIT,VODAFONE LTD,47443244,24.20,RG14 5FF,GB 569 9532 77,103756334
Department of Health,St. Helens&Knowsley Hospitals NHS Trust,30/06/2023,Mobile Phones,ACUTE MEDICAL UNIT,VODAFONE LTD,47443244,121.11,RG14 5FF,GB 569 9532 77,103756334
Department of Health,St. Helens&Knowsley Hospitals NHS Trust,30/06/2023,Mobile Phones,ADMINISTRATION SERVICE CO-ORDINATOR,VODAFONE LTD,47443244,6.00,RG14 5FF,GB 569 9532 77,103756334
Department of Health,St. Helens&Knowsley Hospitals NHS Trust,30/06/2023,Mobile Phones,ADMINISTRATION SERVICE CO-ORDINATOR,VODAFONE LTD,47443244,30.00,RG14 5FF,GB 569 9532 77,103756334
Department of Health,St. Helens&Knowsley Hospitals NHS Trust,30/06/2023,Mobile Phones,ADMINISTRATIVE SUPPORT,VODAFONE LTD,47443244,20.01,RG14 5FF,GB 569 9532 77,103756334
Department of Health,St. Helens&Knowsley Hospitals NHS Trust,30/06/2023,Mobile Phones,ADMINISTRATIVE SUPPORT,VODAFONE LTD,47443244,100.15,RG14 5FF,GB 569 9532 77,103756334
Department of Health,St. Helens&Knowsley Hospitals NHS Trust,30/06/2023,Mobile Phones,AMU NURSE SPECIALISTS,VODAFONE LTD,47443244,52.96,RG14 5FF,GB 569 9532 77,103756334
Department of Health,St. Helens&Knowsley Hospitals NHS Trust,30/06/2023,Mobile Phones,AMU NURSE SPECIALISTS,VODAFONE LTD,47443244,265.00,RG14 5FF,GB 569 9532 77,103756334
Department of Health,St. Helens&Knowsley Hospitals NHS Trust,30/06/2023,Mobile Phones,ANTI-COAGULATION NURSING TEAM,VODAFONE LTD,47443244,6.00,RG14 5FF,GB 569 9532 77,103756334
Department of Health,St. Helens&Knowsley Hospitals NHS Trust,30/06/2023,Mobile Phones,ANTI-COAGULATION NURSING TEAM,VODAFONE LTD,47443244,30.00,RG14 5FF,GB 569 9532 77,103756334
Department of Health,St. Helens&Knowsley Hospitals NHS Trust,30/06/2023,Mobile Phones,B + P DRESSINGS CLINIC,VODAFONE LTD,47443244,6.00,RG14 5FF,GB 569 9532 77,103756334
Department of Health,St. Helens&Knowsley Hospitals NHS Trust,30/06/2023,Mobile Phones,B + P DRESSINGS CLINIC,VODAFONE LTD,47443244,30.00,RG14 5FF,GB 569 9532 77,103756334
Department of Health,St. Helens&Knowsley Hospitals NHS Trust,30/06/2023,Mobile Phones,B + P MEDICAL PHOTOGRAPHY,VODAFONE LTD,47443244,11.99,RG14 5FF,GB 569 9532 77,103756334
Department of Health,St. Helens&Knowsley Hospitals NHS Trust,30/06/2023,Mobile Phones,B + P MEDICAL PHOTOGRAPHY,VODAFONE LTD,47443244,60.00,RG14 5FF,GB 569 9532 77,103756334
Department of Health,St. Helens&Knowsley Hospitals NHS Trust,30/06/2023,Mobile Phones,B + P MEDICAL STAFF,VODAFONE LTD,47443244,67.36,RG14 5FF,GB 569 9532 77,103756334
Department of Health,St. Helens&Knowsley Hospitals NHS Trust,30/06/2023,Mobile Phones,B + P MEDICAL STAFF,VODAFONE LTD,47443244,337.09,RG14 5FF,GB 569 9532 77,103756334
Department of Health,St. Helens&Knowsley Hospitals NHS Trust,30/06/2023,Mobile Phones,BD INCOME-NON PARTNERS,VODAFONE LTD,47443244,6.00,RG14 5FF,GB 569 9532 77,103756334
Department of Health,St. Helens&Knowsley Hospitals NHS Trust,30/06/2023,Mobile Phones,BD INCOME-NON PARTNERS,VODAFONE LTD,47443244,30.00,RG14 5FF,GB 569 9532 77,103756334
Department of Health,St. Helens&Knowsley Hospitals NHS Trust,30/06/2023,Mobile Phones,BED MANAGEMENT,VODAFONE LTD,47443244,12.11,RG14 5FF,GB 569 9532 77,103756334
Department of Health,St. Helens&Knowsley Hospitals NHS Trust,30/06/2023,Mobile Phones,BED MANAGEMENT,VODAFONE LTD,47443244,60.60,RG14 5FF,GB 569 9532 77,103756334
Department of Health,St. Helens&Knowsley Hospitals NHS Trust,30/06/2023,Mobile Phones,BEVAN COURT 1,VODAFONE LTD,47443244,19.48,RG14 5FF,GB 569 9532 77,103756334
Department of Health,St. Helens&Knowsley Hospitals NHS Trust,30/06/2023,Mobile Phones,BEVAN COURT 1,VODAFONE LTD,47443244,97.50,RG14 5FF,GB 569 9532 77,103756334
Department of Health,St. Helens&Knowsley Hospitals NHS Trust,30/06/2023,Mobile Phones,BEVAN COURT 2,VODAFONE LTD,47443244,37.47,RG14 5FF,GB 569 9532 77,103756334
Department of Health,St. Helens&Knowsley Hospitals NHS Trust,30/06/2023,Mobile Phones,BEVAN COURT 2,VODAFONE LTD,47443244,187.50,RG14 5FF,GB 569 9532 77,103756334
Department of Health,St. Helens&Knowsley Hospitals NHS Trust,30/06/2023,Mobile Phones,BUSINESS RELATIONSHIPS,VODAFONE LTD,47443244,14.35,RG14 5FF,GB 569 9532 77,103756334
Department of Health,St. Helens&Knowsley Hospitals NHS Trust,30/06/2023,Mobile Phones,BUSINESS RELATIONSHIPS,VODAFONE LTD,47443244,71.79,RG14 5FF,GB 569 9532 77,103756334
Department of Health,St. Helens&Knowsley Hospitals NHS Trust,30/06/2023,Mobile Phones,C.O.P.D SERVICE (KPCT),VODAFONE LTD,47443244,1.50,RG14 5FF,GB 569 9532 77,103756334
Department of Health,St. Helens&Knowsley Hospitals NHS Trust,30/06/2023,Mobile Phones,C.O.P.D SERVICE (KPCT),VODAFONE LTD,47443244,7.50,RG14 5FF,GB 569 9532 77,103756334
Department of Health,St. Helens&Knowsley Hospitals NHS Trust,30/06/2023,Mobile Phones,C.O.P.D SERVICE (STHPCT),VODAFONE LTD,47443244,220.80,RG14 5FF,GB 569 9532 77,103756334
Department of Health,St. Helens&Knowsley Hospitals NHS Trust,30/06/2023,Mobile Phones,C.O.P.D SERVICE (STHPCT),VODAFONE LTD,47443244,"1,104.88",RG14 5FF,GB 569 9532 77,103756334
Department of Health,St. Helens&Knowsley Hospitals NHS Trust,30/06/2023,Mobile Phones,CANCER CORE STAFF AND NON-PAY,VODAFONE LTD,47443244,11.99,RG14 5FF,GB 569 9532 77,103756334
Department of Health,St. Helens&Knowsley Hospitals NHS Trust,30/06/2023,Mobile Phones,CANCER CORE STAFF AND NON-PAY,VODAFONE LTD,47443244,60.00,RG14 5FF,GB 569 9532 77,103756334
Department of Health,St. Helens&Knowsley Hospitals NHS Trust,30/06/2023,Mobile Phones,CANCER NURSE SPEC MCG,VODAFONE LTD,47443244,11.99,RG14 5FF,GB 569 9532 77,103756334
Department of Health,St. Helens&Knowsley Hospitals NHS Trust,30/06/2023,Mobile Phones,CANCER NURSE SPEC MCG,VODAFONE LTD,47443244,60.00,RG14 5FF,GB 569 9532 77,103756334
Department of Health,St. Helens&Knowsley Hospitals NHS Trust,30/06/2023,Mobile Phones,CANCER NURSE SPEC SCG,VODAFONE LTD,47443244,9.40,RG14 5FF,GB 569 9532 77,103756334
Department of Health,St. Helens&Knowsley Hospitals NHS Trust,30/06/2023,Mobile Phones,CANCER NURSE SPEC SCG,VODAFONE LTD,47443244,47.05,RG14 5FF,GB 569 9532 77,103756334
Department of Health,St. Helens&Knowsley Hospitals NHS Trust,30/06/2023,Mobile Phones,CANCER SERVICES,VODAFONE LTD,47443244,6.00,RG14 5FF,GB 569 9532 77,103756334
Department of Health,St. Helens&Knowsley Hospitals NHS Trust,30/06/2023,Mobile Phones,CANCER SERVICES,VODAFONE LTD,47443244,30.00,RG14 5FF,GB 569 9532 77,103756334
Department of Health,St. Helens&Knowsley Hospitals NHS Trust,30/06/2023,Mobile Phones,CANCER SERVICES - ADMIN,VODAFONE LTD,47443244,6.00,RG14 5FF,GB 569 9532 77,103756334
Department of Health,St. Helens&Knowsley Hospitals NHS Trust,30/06/2023,Mobile Phones,CANCER SERVICES - ADMIN,VODAFONE LTD,47443244,30.00,RG14 5FF,GB 569 9532 77,103756334
Department of Health,St. Helens&Knowsley Hospitals NHS Trust,30/06/2023,Mobile Phones,CANCER SVS CO-ORDINATION,VODAFONE LTD,47443244,39.97,RG14 5FF,GB 569 9532 77,103756334
Department of Health,St. Helens&Knowsley Hospitals NHS Trust,30/06/2023,Mobile Phones,CANCER SVS CO-ORDINATION,VODAFONE LTD,47443244,200.00,RG14 5FF,GB 569 9532 77,103756334
Department of Health,St. Helens&Knowsley Hospitals NHS Trust,30/06/2023,Mobile Phones,CARDIO-RESPIRATORY (ECG),VODAFONE LTD,47443244,40.47,RG14 5FF,GB 569 9532 77,103756334
Department of Health,St. Helens&Knowsley Hospitals NHS Trust,30/06/2023,Mobile Phones,CARDIO-RESPIRATORY (ECG),VODAFONE LTD,47443244,202.50,RG14 5FF,GB 569 9532 77,103756334
Department of Health,St. Helens&Knowsley Hospitals NHS Trust,30/06/2023,Mobile Phones,CARDIOLOGY NURSING,VODAFONE LTD,47443244,5.40,RG14 5FF,GB 569 9532 77,103756334
Department of Health,St. Helens&Knowsley Hospitals NHS Trust,30/06/2023,Mobile Phones,CARDIOLOGY NURSING,VODAFONE LTD,47443244,27.00,RG14 5FF,GB 569 9532 77,103756334
Department of Health,St. Helens&Knowsley Hospitals NHS Trust,30/06/2023,Mobile Phones,CARDIOLOGY SNR MEDICAL,VODAFONE LTD,47443244,19.48,RG14 5FF,GB 569 9532 77,103756334
Department of Health,St. Helens&Knowsley Hospitals NHS Trust,30/06/2023,Mobile Phones,CARDIOLOGY SNR MEDICAL,VODAFONE LTD,47443244,97.50,RG14 5FF,GB 569 9532 77,103756334
Department of Health,St. Helens&Knowsley Hospitals NHS Trust,30/06/2023,Mobile Phones,CARE OF ELDERLY MED STAFF,VODAFONE LTD,47443244,115.44,RG14 5FF,GB 569 9532 77,103756334
Department of Health,St. Helens&Knowsley Hospitals NHS Trust,30/06/2023,Mobile Phones,CARE OF ELDERLY MED STAFF,VODAFONE LTD,47443244,577.71,RG14 5FF,GB 569 9532 77,103756334
Department of Health,St. Helens&Knowsley Hospitals NHS Trust,30/06/2023,Mobile Phones,CHAIRMAN'S OFFICE,VODAFONE LTD,47443244,42.08,RG14 5FF,GB 569 9532 77,103756334
Department of Health,St. Helens&Knowsley Hospitals NHS Trust,30/06/2023,Mobile Phones,CHAIRMAN'S OFFICE,VODAFONE LTD,47443244,210.55,RG14 5FF,GB 569 9532 77,103756334
Department of Health,St. Helens&Knowsley Hospitals NHS Trust,30/06/2023,Mobile Phones,CHIEF EXECUTIVE'S OFFICE,VODAFONE LTD,47443244,134.42,RG14 5FF,GB 569 9532 77,103756334
Department of Health,St. Helens&Knowsley Hospitals NHS Trust,30/06/2023,Mobile Phones,CHIEF EXECUTIVE'S OFFICE,VODAFONE LTD,47443244,672.67,RG14 5FF,GB 569 9532 77,103756334
Department of Health,St. Helens&Knowsley Hospitals NHS Trust,30/06/2023,Mobile Phones,CHILDRENS NURSING,VODAFONE LTD,47443244,144.97,RG14 5FF,GB 569 9532 77,103756334
Department of Health,St. Helens&Knowsley Hospitals NHS Trust,30/06/2023,Mobile Phones,CHILDRENS NURSING,VODAFONE LTD,47443244,725.42,RG14 5FF,GB 569 9532 77,103756334
Department of Health,St. Helens&Knowsley Hospitals NHS Trust,30/06/2023,Mobile Phones,CLINICAL AUDIT,VODAFONE LTD,47443244,6.00,RG14 5FF,GB 569 9532 77,103756334
Department of Health,St. Helens&Knowsley Hospitals NHS Trust,30/06/2023,Mobile Phones,CLINICAL AUDIT,VODAFONE LTD,47443244,30.00,RG14 5FF,GB 569 9532 77,103756334
Department of Health,St. Helens&Knowsley Hospitals NHS Trust,30/06/2023,Mobile Phones,CLINICAL GOVERNANCE TEAM,VODAFONE LTD,47443244,15.49,RG14 5FF,GB 569 9532 77,103756334
Department of Health,St. Helens&Knowsley Hospitals NHS Trust,30/06/2023,Mobile Phones,CLINICAL GOVERNANCE TEAM,VODAFONE LTD,47443244,77.50,RG14 5FF,GB 569 9532 77,103756334
Department of Health,St. Helens&Knowsley Hospitals NHS Trust,30/06/2023,Mobile Phones,CLINICAL PSYCHOLOGY,VODAFONE LTD,47443244,26.98,RG14 5FF,GB 569 9532 77,103756334
Department of Health,St. Helens&Knowsley Hospitals NHS Trust,30/06/2023,Mobile Phones,CLINICAL PSYCHOLOGY,VODAFONE LTD,47443244,135.00,RG14 5FF,GB 569 9532 77,103756334
Department of Health,St. Helens&Knowsley Hospitals NHS Trust,30/06/2023,Mobile Phones,CLINICAL SUPPORT DIV MGMT,VODAFONE LTD,47443244,36.97,RG14 5FF,GB 569 9532 77,103756334
Department of Health,St. Helens&Knowsley Hospitals NHS Trust,30/06/2023,Mobile Phones,CLINICAL SUPPORT DIV MGMT,VODAFONE LTD,47443244,185.00,RG14 5FF,GB 569 9532 77,103756334
Department of Health,St. Helens&Knowsley Hospitals NHS Trust,30/06/2023,Mobile Phones,COE NURSE SPECIALISTS,VODAFONE LTD,47443244,19.48,RG14 5FF,GB 569 9532 77,103756334
Department of Health,St. Helens&Knowsley Hospitals NHS Trust,30/06/2023,Mobile Phones,COE NURSE SPECIALISTS,VODAFONE LTD,47443244,97.50,RG14 5FF,GB 569 9532 77,103756334
Department of Health,St. Helens&Knowsley Hospitals NHS Trust,30/06/2023,Mobile Phones,COLD DECONTAMINATION,VODAFONE LTD,47443244,6.00,RG14 5FF,GB 569 9532 77,103756334
Department of Health,St. Helens&Knowsley Hospitals NHS Trust,30/06/2023,Mobile Phones,COLD DECONTAMINATION,VODAFONE LTD,47443244,30.00,RG14 5FF,GB 569 9532 77,103756334
Department of Health,St. Helens&Knowsley Hospitals NHS Trust,30/06/2023,Mobile Phones,COLD DECONTAMINATION WHISTON,VODAFONE LTD,47443244,13.49,RG14 5FF,GB 569 9532 77,103756334
Department of Health,St. Helens&Knowsley Hospitals NHS Trust,30/06/2023,Mobile Phones,COLD DECONTAMINATION WHISTON,VODAFONE LTD,47443244,67.50,RG14 5FF,GB 569 9532 77,103756334
Department of Health,St. Helens&Knowsley Hospitals NHS Trust,30/06/2023,Mobile Phones,COMMUNICATIONS,VODAFONE LTD,47443244,61.01,RG14 5FF,GB 569 9532 77,103756334
Department of Health,St. Helens&Knowsley Hospitals NHS Trust,30/06/2023,Mobile Phones,COMMUNICATIONS,VODAFONE LTD,47443244,305.30,RG14 5FF,GB 569 9532 77,103756334
Department of Health,St. Helens&Knowsley Hospitals NHS Trust,30/06/2023,Mobile Phones,COMMUNITY CARDIAC TEAM,VODAFONE LTD,47443244,89.33,RG14 5FF,GB 569 9532 77,103756334
Department of Health,St. Helens&Knowsley Hospitals NHS Trust,30/06/2023,Mobile Phones,COMMUNITY CARDIAC TEAM,VODAFONE LTD,47443244,447.00,RG14 5FF,GB 569 9532 77,103756334
Department of Health,St. Helens&Knowsley Hospitals NHS Trust,30/06/2023,Mobile Phones,COMMUNITY CONTINENCE SERVICE,VODAFONE LTD,47443244,42.96,RG14 5FF,GB 569 9532 77,103756334
Department of Health,St. Helens&Knowsley Hospitals NHS Trust,30/06/2023,Mobile Phones,COMMUNITY CONTINENCE SERVICE,VODAFONE LTD,47443244,215.00,RG14 5FF,GB 569 9532 77,103756334
Department of Health,St. Helens&Knowsley Hospitals NHS Trust,30/06/2023,Mobile Phones,COMMUNITY FRAILTY SERVICE,VODAFONE LTD,47443244,412.78,RG14 5FF,GB 569 9532 77,103756334
Department of Health,St. Helens&Knowsley Hospitals NHS Trust,30/06/2023,Mobile Phones,COMMUNITY FRAILTY SERVICE,VODAFONE LTD,47443244,"2,065.57",RG14 5FF,GB 569 9532 77,103756334
Department of Health,St. Helens&Knowsley Hospitals NHS Trust,30/06/2023,Mobile Phones,COMMUNITY MATRON,VODAFONE LTD,47443244,117.18,RG14 5FF,GB 569 9532 77,103756334
Department of Health,St. Helens&Knowsley Hospitals NHS Trust,30/06/2023,Mobile Phones,COMMUNITY MATRON,VODAFONE LTD,47443244,586.40,RG14 5FF,GB 569 9532 77,103756334
Department of Health,St. Helens&Knowsley Hospitals NHS Trust,30/06/2023,Mobile Phones,COMMUNITY MIDWIFERY,VODAFONE LTD,47443244,932.10,RG14 5FF,GB 569 9532 77,103756334
Department of Health,St. Helens&Knowsley Hospitals NHS Trust,30/06/2023,Mobile Phones,COMMUNITY MIDWIFERY,VODAFONE LTD,47443244,"4,665.58",RG14 5FF,GB 569 9532 77,103756334
Department of Health,St. Helens&Knowsley Hospitals NHS Trust,30/06/2023,Mobile Phones,COMMUNITY NURSING MANAGEMENT,VODAFONE LTD,47443244,34.04,RG14 5FF,GB 569 9532 77,103756334
Department of Health,St. Helens&Knowsley Hospitals NHS Trust,30/06/2023,Mobile Phones,COMMUNITY NURSING MANAGEMENT,VODAFONE LTD,47443244,170.32,RG14 5FF,GB 569 9532 77,103756334
Department of Health,St. Helens&Knowsley Hospitals NHS Trust,30/06/2023,Mobile Phones,COMMUNITY PAEDIATRICS,VODAFONE LTD,47443244,213.16,RG14 5FF,GB 569 9532 77,103756334
Department of Health,St. Helens&Knowsley Hospitals NHS Trust,30/06/2023,Mobile Phones,COMMUNITY PAEDIATRICS,VODAFONE LTD,47443244,"1,066.67",RG14 5FF,GB 569 9532 77,103756334
Department of Health,St. Helens&Knowsley Hospitals NHS Trust,30/06/2023,Mobile Phones,COMMUNITY RENT,VODAFONE LTD,47443244,9.04,RG14 5FF,GB 569 9532 77,103756334
Department of Health,St. Helens&Knowsley Hospitals NHS Trust,30/06/2023,Mobile Phones,COMMUNITY RENT,VODAFONE LTD,47443244,45.25,RG14 5FF,GB 569 9532 77,103756334
Department of Health,St. Helens&Knowsley Hospitals NHS Trust,30/06/2023,Mobile Phones,COMMUNITY SERVICES MANAGEMENT,VODAFONE LTD,47443244,39.97,RG14 5FF,GB 569 9532 77,103756334
Department of Health,St. Helens&Knowsley Hospitals NHS Trust,30/06/2023,Mobile Phones,COMMUNITY SERVICES MANAGEMENT,VODAFONE LTD,47443244,200.00,RG14 5FF,GB 569 9532 77,103756334
Department of Health,St. Helens&Knowsley Hospitals NHS Trust,30/06/2023,Mobile Phones,COMMUNITY SLA'S,VODAFONE LTD,47443244,85.14,RG14 5FF,GB 569 9532 77,103756334
Department of Health,St. Helens&Knowsley Hospitals NHS Trust,30/06/2023,Mobile Phones,COMMUNITY SLA'S,VODAFONE LTD,47443244,426.04,RG14 5FF,GB 569 9532 77,103756334
Department of Health,St. Helens&Knowsley Hospitals NHS Trust,30/06/2023,Mobile Phones,COMPLAINTS,VODAFONE LTD,47443244,8.39,RG14 5FF,GB 569 9532 77,103756334
Department of Health,St. Helens&Knowsley Hospitals NHS Trust,30/06/2023,Mobile Phones,COMPLAINTS,VODAFONE LTD,47443244,42.00,RG14 5FF,GB 569 9532 77,103756334
Department of Health,St. Helens&Knowsley Hospitals NHS Trust,30/06/2023,Mobile Phones,COVID,VODAFONE LTD,47443244,108.94,RG14 5FF,GB 569 9532 77,103756334
Department of Health,St. Helens&Knowsley Hospitals NHS Trust,30/06/2023,Mobile Phones,COVID,VODAFONE LTD,47443244,545.12,RG14 5FF,GB 569 9532 77,103756334
Department of Health,St. Helens&Knowsley Hospitals NHS Trust,30/06/2023,Mobile Phones,DERMATOLOGY,VODAFONE LTD,47443244,32.97,RG14 5FF,GB 569 9532 77,103756334
Department of Health,St. Helens&Knowsley Hospitals NHS Trust,30/06/2023,Mobile Phones,DERMATOLOGY,VODAFONE LTD,47443244,165.00,RG14 5FF,GB 569 9532 77,103756334
Department of Health,St. Helens&Knowsley Hospitals NHS Trust,30/06/2023,Mobile Phones,DIABETES NURSING,VODAFONE LTD,47443244,65.81,RG14 5FF,GB 569 9532 77,103756334
Department of Health,St. Helens&Knowsley Hospitals NHS Trust,30/06/2023,Mobile Phones,DIABETES NURSING,VODAFONE LTD,47443244,329.30,RG14 5FF,GB 569 9532 77,103756334
Department of Health,St. Helens&Knowsley Hospitals NHS Trust,30/06/2023,Mobile Phones,DIABETES SNR MEDICAL,VODAFONE LTD,47443244,11.99,RG14 5FF,GB 569 9532 77,103756334
Department of Health,St. Helens&Knowsley Hospitals NHS Trust,30/06/2023,Mobile Phones,DIABETES SNR MEDICAL,VODAFONE LTD,47443244,60.00,RG14 5FF,GB 569 9532 77,103756334
Department of Health,St. Helens&Knowsley Hospitals NHS Trust,30/06/2023,Mobile Phones,DIABETES STP,VODAFONE LTD,47443244,71.94,RG14 5FF,GB 569 9532 77,103756334
Department of Health,St. Helens&Knowsley Hospitals NHS Trust,30/06/2023,Mobile Phones,DIABETES STP,VODAFONE LTD,47443244,360.00,RG14 5FF,GB 569 9532 77,103756334
Department of Health,St. Helens&Knowsley Hospitals NHS Trust,30/06/2023,Mobile Phones,DIGITAL ASPIRATION PRGRME,VODAFONE LTD,47443244,6.00,RG14 5FF,GB 569 9532 77,103756334
Department of Health,St. Helens&Knowsley Hospitals NHS Trust,30/06/2023,Mobile Phones,DIGITAL ASPIRATION PRGRME,VODAFONE LTD,47443244,30.00,RG14 5FF,GB 569 9532 77,103756334
Department of Health,St. Helens&Knowsley Hospitals NHS Trust,30/06/2023,Mobile Phones,DIGITAL SOLUTIONS,VODAFONE LTD,47443244,37.52,RG14 5FF,GB 569 9532 77,103756334
Department of Health,St. Helens&Knowsley Hospitals NHS Trust,30/06/2023,Mobile Phones,DIGITAL SOLUTIONS,VODAFONE LTD,47443244,187.74,RG14 5FF,GB 569 9532 77,103756334
Department of Health,St. Helens&Knowsley Hospitals NHS Trust,30/06/2023,Mobile Phones,DN CENTRAL,VODAFONE LTD,47443244,294.44,RG14 5FF,GB 569 9532 77,103756334
Department of Health,St. Helens&Knowsley Hospitals NHS Trust,30/06/2023,Mobile Phones,DN CENTRAL,VODAFONE LTD,47443244,"1,473.41",RG14 5FF,GB 569 9532 77,103756334
Department of Health,St. Helens&Knowsley Hospitals NHS Trust,30/06/2023,Mobile Phones,DN HAYDOCK AND NEWTON,VODAFONE LTD,47443244,306.21,RG14 5FF,GB 569 9532 77,103756334
Department of Health,St. Helens&Knowsley Hospitals NHS Trust,30/06/2023,Mobile Phones,DN HAYDOCK AND NEWTON,VODAFONE LTD,47443244,"1,532.30",RG14 5FF,GB 569 9532 77,103756334
Department of Health,St. Helens&Knowsley Hospitals NHS Trust,30/06/2023,Mobile Phones,DN NORTH,VODAFONE LTD,47443244,197.79,RG14 5FF,GB 569 9532 77,103756334
Department of Health,St. Helens&Knowsley Hospitals NHS Trust,30/06/2023,Mobile Phones,DN NORTH,VODAFONE LTD,47443244,989.78,RG14 5FF,GB 569 9532 77,103756334
Department of Health,St. Helens&Knowsley Hospitals NHS Trust,30/06/2023,Mobile Phones,DN SOUTH,VODAFONE LTD,47443244,282.51,RG14 5FF,GB 569 9532 77,103756334
Department of Health,St. Helens&Knowsley Hospitals NHS Trust,30/06/2023,Mobile Phones,DN SOUTH,VODAFONE LTD,47443244,"1,413.72",RG14 5FF,GB 569 9532 77,103756334
Department of Health,St. Helens&Knowsley Hospitals NHS Trust,30/06/2023,Mobile Phones,DN St Helens OOH,VODAFONE LTD,47443244,96.01,RG14 5FF,GB 569 9532 77,103756334
Department of Health,St. Helens&Knowsley Hospitals NHS Trust,30/06/2023,Mobile Phones,DN St Helens OOH,VODAFONE LTD,47443244,480.45,RG14 5FF,GB 569 9532 77,103756334
Department of Health,St. Helens&Knowsley Hospitals NHS Trust,30/06/2023,Mobile Phones,DUFFY SUITE INTERMEDIATE CARE UNIT,VODAFONE LTD,47443244,11.99,RG14 5FF,GB 569 9532 77,103756334
Department of Health,St. Helens&Knowsley Hospitals NHS Trust,30/06/2023,Mobile Phones,DUFFY SUITE INTERMEDIATE CARE UNIT,VODAFONE LTD,47443244,60.00,RG14 5FF,GB 569 9532 77,103756334
Department of Health,St. Helens&Knowsley Hospitals NHS Trust,30/06/2023,Mobile Phones,EMERGENCY PLANNING,VODAFONE LTD,47443244,42.07,RG14 5FF,GB 569 9532 77,103756334
Department of Health,St. Helens&Knowsley Hospitals NHS Trust,30/06/2023,Mobile Phones,EMERGENCY PLANNING,VODAFONE LTD,47443244,210.50,RG14 5FF,GB 569 9532 77,103756334
Department of Health,St. Helens&Knowsley Hospitals NHS Trust,30/06/2023,Mobile Phones,EMIS COMMUNITY PROJECT,VODAFONE LTD,47443244,19.98,RG14 5FF,GB 569 9532 77,103756334
Department of Health,St. Helens&Knowsley Hospitals NHS Trust,30/06/2023,Mobile Phones,EMIS COMMUNITY PROJECT,VODAFONE LTD,47443244,100.00,RG14 5FF,GB 569 9532 77,103756334
Department of Health,St. Helens&Knowsley Hospitals NHS Trust,30/06/2023,Mobile Phones,EPMA,VODAFONE LTD,47443244,44.64,RG14 5FF,GB 569 9532 77,103756334
Department of Health,St. Helens&Knowsley Hospitals NHS Trust,30/06/2023,Mobile Phones,EPMA,VODAFONE LTD,47443244,223.36,RG14 5FF,GB 569 9532 77,103756334
Department of Health,St. Helens&Knowsley Hospitals NHS Trust,30/06/2023,Mobile Phones,ETTF,VODAFONE LTD,47443244,1.49,RG14 5FF,GB 569 9532 77,103756334
Department of Health,St. Helens&Knowsley Hospitals NHS Trust,30/06/2023,Mobile Phones,ETTF,VODAFONE LTD,47443244,7.45,RG14 5FF,GB 569 9532 77,103756334
Department of Health,St. Helens&Knowsley Hospitals NHS Trust,30/06/2023,Mobile Phones,EXECUTIVE PAYROLL,VODAFONE LTD,47443244,66.24,RG14 5FF,GB 569 9532 77,103756334
Department of Health,St. Helens&Knowsley Hospitals NHS Trust,30/06/2023,Mobile Phones,EXECUTIVE PAYROLL,VODAFONE LTD,47443244,331.46,RG14 5FF,GB 569 9532 77,103756334
Department of Health,St. Helens&Knowsley Hospitals NHS Trust,30/06/2023,Mobile Phones,FACILITIES MANAGEMENT,VODAFONE LTD,47443244,68.64,RG14 5FF,GB 569 9532 77,103756334
Department of Health,St. Helens&Knowsley Hospitals NHS Trust,30/06/2023,Mobile Phones,FACILITIES MANAGEMENT,VODAFONE LTD,47443244,343.50,RG14 5FF,GB 569 9532 77,103756334
Department of Health,St. Helens&Knowsley Hospitals NHS Trust,30/06/2023,Mobile Phones,FALLS NURSE,VODAFONE LTD,47443244,9.06,RG14 5FF,GB 569 9532 77,103756334
Department of Health,St. Helens&Knowsley Hospitals NHS Trust,30/06/2023,Mobile Phones,FALLS NURSE,VODAFONE LTD,47443244,45.35,RG14 5FF,GB 569 9532 77,103756334
Department of Health,St. Helens&Knowsley Hospitals NHS Trust,30/06/2023,Mobile Phones,FINANCE DIRECTORATE HQ,VODAFONE LTD,47443244,17.99,RG14 5FF,GB 569 9532 77,103756334
Department of Health,St. Helens&Knowsley Hospitals NHS Trust,30/06/2023,Mobile Phones,FINANCE DIRECTORATE HQ,VODAFONE LTD,47443244,90.00,RG14 5FF,GB 569 9532 77,103756334
Department of Health,St. Helens&Knowsley Hospitals NHS Trust,30/06/2023,Mobile Phones,GASTRO UPPER GI FUND,VODAFONE LTD,47443244,6.00,RG14 5FF,GB 569 9532 77,103756334
Department of Health,St. Helens&Knowsley Hospitals NHS Trust,30/06/2023,Mobile Phones,GASTRO UPPER GI FUND,VODAFONE LTD,47443244,30.00,RG14 5FF,GB 569 9532 77,103756334
Department of Health,St. Helens&Knowsley Hospitals NHS Trust,30/06/2023,Mobile Phones,GASTROLOGY NURSING,VODAFONE LTD,47443244,47.96,RG14 5FF,GB 569 9532 77,103756334
Department of Health,St. Helens&Knowsley Hospitals NHS Trust,30/06/2023,Mobile Phones,GASTROLOGY NURSING,VODAFONE LTD,47443244,240.00,RG14 5FF,GB 569 9532 77,103756334
Department of Health,St. Helens&Knowsley Hospitals NHS Trust,30/06/2023,Mobile Phones,GASTROLOGY SNR MEDICAL,VODAFONE LTD,47443244,103.95,RG14 5FF,GB 569 9532 77,103756334
Department of Health,St. Helens&Knowsley Hospitals NHS Trust,30/06/2023,Mobile Phones,GASTROLOGY SNR MEDICAL,VODAFONE LTD,47443244,520.16,RG14 5FF,GB 569 9532 77,103756334
Department of Health,St. Helens&Knowsley Hospitals NHS Trust,30/06/2023,Mobile Phones,GEN MED ENDOSCOPY H2,VODAFONE LTD,47443244,6.12,RG14 5FF,GB 569 9532 77,103756334
Department of Health,St. Helens&Knowsley Hospitals NHS Trust,30/06/2023,Mobile Phones,GEN MED ENDOSCOPY H2,VODAFONE LTD,47443244,30.61,RG14 5FF,GB 569 9532 77,103756334
Department of Health,St. Helens&Knowsley Hospitals NHS Trust,30/06/2023,Mobile Phones,GEN MEDICINE MEDICAL STF,VODAFONE LTD,47443244,33.47,RG14 5FF,GB 569 9532 77,103756334
Department of Health,St. Helens&Knowsley Hospitals NHS Trust,30/06/2023,Mobile Phones,GEN MEDICINE MEDICAL STF,VODAFONE LTD,47443244,167.50,RG14 5FF,GB 569 9532 77,103756334
Department of Health,St. Helens&Knowsley Hospitals NHS Trust,30/06/2023,Mobile Phones,GENERAL SURGERY MEDICAL,VODAFONE LTD,47443244,49.52,RG14 5FF,GB 569 9532 77,103756334
Department of Health,St. Helens&Knowsley Hospitals NHS Trust,30/06/2023,Mobile Phones,GENERAL SURGERY MEDICAL,VODAFONE LTD,47443244,247.80,RG14 5FF,GB 569 9532 77,103756334
Department of Health,St. Helens&Knowsley Hospitals NHS Trust,30/06/2023,Mobile Phones,HAEM + BLOOD TRANSFUSION,VODAFONE LTD,47443244,23.98,RG14 5FF,GB 569 9532 77,103756334
Department of Health,St. Helens&Knowsley Hospitals NHS Trust,30/06/2023,Mobile Phones,HAEM + BLOOD TRANSFUSION,VODAFONE LTD,47443244,120.00,RG14 5FF,GB 569 9532 77,103756334
Department of Health,St. Helens&Knowsley Hospitals NHS Trust,30/06/2023,Mobile Phones,HAEMATOLOGY MEDICAL,VODAFONE LTD,47443244,61.19,RG14 5FF,GB 569 9532 77,103756334
Department of Health,St. Helens&Knowsley Hospitals NHS Trust,30/06/2023,Mobile Phones,HAEMATOLOGY MEDICAL,VODAFONE LTD,47443244,306.22,RG14 5FF,GB 569 9532 77,103756334
Department of Health,St. Helens&Knowsley Hospitals NHS Trust,30/06/2023,Mobile Phones,HEALTH RECORDS - SCANNING,VODAFONE LTD,47443244,6.25,RG14 5FF,GB 569 9532 77,103756334
Department of Health,St. Helens&Knowsley Hospitals NHS Trust,30/06/2023,Mobile Phones,HEALTH RECORDS - SCANNING,VODAFONE LTD,47443244,31.29,RG14 5FF,GB 569 9532 77,103756334
Department of Health,St. Helens&Knowsley Hospitals NHS Trust,30/06/2023,Mobile Phones,HISTOPATHOLOGY/MORTUARY,VODAFONE LTD,47443244,6.00,RG14 5FF,GB 569 9532 77,103756334
Department of Health,St. Helens&Knowsley Hospitals NHS Trust,30/06/2023,Mobile Phones,HISTOPATHOLOGY/MORTUARY,VODAFONE LTD,47443244,30.00,RG14 5FF,GB 569 9532 77,103756334
Department of Health,St. Helens&Knowsley Hospitals NHS Trust,30/06/2023,Mobile Phones,HOSPITAL DISCHARGE TEAM,VODAFONE LTD,47443244,66.00,RG14 5FF,GB 569 9532 77,103756334
Department of Health,St. Helens&Knowsley Hospitals NHS Trust,30/06/2023,Mobile Phones,HOSPITAL DISCHARGE TEAM,VODAFONE LTD,47443244,330.25,RG14 5FF,GB 569 9532 77,103756334
Department of Health,St. Helens&Knowsley Hospitals NHS Trust,30/06/2023,Mobile Phones,HSDU WHISTON,VODAFONE LTD,47443244,9.99,RG14 5FF,GB 569 9532 77,103756334
Department of Health,St. Helens&Knowsley Hospitals NHS Trust,30/06/2023,Mobile Phones,HSDU WHISTON,VODAFONE LTD,47443244,50.00,RG14 5FF,GB 569 9532 77,103756334
Department of Health,St. Helens&Knowsley Hospitals NHS Trust,30/06/2023,Mobile Phones,HUMAN RESOURCES - CORE HR,VODAFONE LTD,47443244,35.97,RG14 5FF,GB 569 9532 77,103756334
Department of Health,St. Helens&Knowsley Hospitals NHS Trust,30/06/2023,Mobile Phones,HUMAN RESOURCES - CORE HR,VODAFONE LTD,47443244,180.00,RG14 5FF,GB 569 9532 77,103756334
Department of Health,St. Helens&Knowsley Hospitals NHS Trust,30/06/2023,Mobile Phones,HUMAN RESOURCES - RESOURCING,VODAFONE LTD,47443244,243.80,RG14 5FF,GB 569 9532 77,103756334
Department of Health,St. Helens&Knowsley Hospitals NHS Trust,30/06/2023,Mobile Phones,HUMAN RESOURCES - RESOURCING,VODAFONE LTD,47443244,"1,220.00",RG14 5FF,GB 569 9532 77,103756334
Department of Health,St. Helens&Knowsley Hospitals NHS Trust,30/06/2023,Mobile Phones,I T EXECUTIVE,VODAFONE LTD,47443244,21.34,RG14 5FF,GB 569 9532 77,103756334
Department of Health,St. Helens&Knowsley Hospitals NHS Trust,30/06/2023,Mobile Phones,I T EXECUTIVE,VODAFONE LTD,47443244,106.79,RG14 5FF,GB 569 9532 77,103756334
Department of Health,St. Helens&Knowsley Hospitals NHS Trust,30/06/2023,Mobile Phones,ICU MEDICAL STAFF WHISTON,VODAFONE LTD,47443244,38.97,RG14 5FF,GB 569 9532 77,103756334
Department of Health,St. Helens&Knowsley Hospitals NHS Trust,30/06/2023,Mobile Phones,ICU MEDICAL STAFF WHISTON,VODAFONE LTD,47443244,195.00,RG14 5FF,GB 569 9532 77,103756334
Department of Health,St. Helens&Knowsley Hospitals NHS Trust,30/06/2023,Mobile Phones,ICU NURSING WHISTON,VODAFONE LTD,47443244,1.50,RG14 5FF,GB 569 9532 77,103756334
Department of Health,St. Helens&Knowsley Hospitals NHS Trust,30/06/2023,Mobile Phones,ICU NURSING WHISTON,VODAFONE LTD,47443244,7.50,RG14 5FF,GB 569 9532 77,103756334
Department of Health,St. Helens&Knowsley Hospitals NHS Trust,30/06/2023,Mobile Phones,IMT SCHEMES FUND,VODAFONE LTD,47443244,65.95,RG14 5FF,GB 569 9532 77,103756334
Department of Health,St. Helens&Knowsley Hospitals NHS Trust,30/06/2023,Mobile Phones,IMT SCHEMES FUND,VODAFONE LTD,47443244,330.00,RG14 5FF,GB 569 9532 77,103756334
Department of Health,St. Helens&Knowsley Hospitals NHS Trust,30/06/2023,Mobile Phones,INFANT FEEDING TEAM,VODAFONE LTD,47443244,28.48,RG14 5FF,GB 569 9532 77,103756334
Department of Health,St. Helens&Knowsley Hospitals NHS Trust,30/06/2023,Mobile Phones,INFANT FEEDING TEAM,VODAFONE LTD,47443244,142.50,RG14 5FF,GB 569 9532 77,103756334
Department of Health,St. Helens&Knowsley Hospitals NHS Trust,30/06/2023,Mobile Phones,INFECTION CONTROL,VODAFONE LTD,47443244,10.49,RG14 5FF,GB 569 9532 77,103756334
Department of Health,St. Helens&Knowsley Hospitals NHS Trust,30/06/2023,Mobile Phones,INFECTION CONTROL,VODAFONE LTD,47443244,52.50,RG14 5FF,GB 569 9532 77,103756334
Department of Health,St. Helens&Knowsley Hospitals NHS Trust,30/06/2023,Mobile Phones,INFORMATION DEPARTMENT,VODAFONE LTD,47443244,41.97,RG14 5FF,GB 569 9532 77,103756334
Department of Health,St. Helens&Knowsley Hospitals NHS Trust,30/06/2023,Mobile Phones,INFORMATION DEPARTMENT,VODAFONE LTD,47443244,210.00,RG14 5FF,GB 569 9532 77,103756334
Department of Health,St. Helens&Knowsley Hospitals NHS Trust,30/06/2023,Mobile Phones,INTERNATIONAL RECRUITMENT,VODAFONE LTD,47443244,6.00,RG14 5FF,GB 569 9532 77,103756334
Department of Health,St. Helens&Knowsley Hospitals NHS Trust,30/06/2023,Mobile Phones,INTERNATIONAL RECRUITMENT,VODAFONE LTD,47443244,30.00,RG14 5FF,GB 569 9532 77,103756334
Department of Health,St. Helens&Knowsley Hospitals NHS Trust,30/06/2023,Mobile Phones,IRREG MAINT WHISTON,VODAFONE LTD,47443244,43.04,RG14 5FF,GB 569 9532 77,103756334
Department of Health,St. Helens&Knowsley Hospitals NHS Trust,30/06/2023,Mobile Phones,IRREG MAINT WHISTON,VODAFONE LTD,47443244,215.39,RG14 5FF,GB 569 9532 77,103756334
Department of Health,St. Helens&Knowsley Hospitals NHS Trust,30/06/2023,Mobile Phones,IV THERAPY ST HELENS,VODAFONE LTD,47443244,123.77,RG14 5FF,GB 569 9532 77,103756334
Department of Health,St. Helens&Knowsley Hospitals NHS Trust,30/06/2023,Mobile Phones,IV THERAPY ST HELENS,VODAFONE LTD,47443244,619.34,RG14 5FF,GB 569 9532 77,103756334
Department of Health,St. Helens&Knowsley Hospitals NHS Trust,30/06/2023,Mobile Phones,LE-HELPDESK,VODAFONE LTD,47443244,4.80,RG14 5FF,GB 569 9532 77,103756334
Department of Health,St. Helens&Knowsley Hospitals NHS Trust,30/06/2023,Mobile Phones,LE-HELPDESK,VODAFONE LTD,47443244,24.00,RG14 5FF,GB 569 9532 77,103756334
Department of Health,St. Helens&Knowsley Hospitals NHS Trust,30/06/2023,Mobile Phones,LE-MANAGEMENT TEAM,VODAFONE LTD,47443244,52.09,RG14 5FF,GB 569 9532 77,103756334
Department of Health,St. Helens&Knowsley Hospitals NHS Trust,30/06/2023,Mobile Phones,LE-MANAGEMENT TEAM,VODAFONE LTD,47443244,260.66,RG14 5FF,GB 569 9532 77,103756334
Department of Health,St. Helens&Knowsley Hospitals NHS Trust,30/06/2023,Mobile Phones,LEGAL SERVICES,VODAFONE LTD,47443244,6.00,RG14 5FF,GB 569 9532 77,103756334
Department of Health,St. Helens&Knowsley Hospitals NHS Trust,30/06/2023,Mobile Phones,LEGAL SERVICES,VODAFONE LTD,47443244,30.00,RG14 5FF,GB 569 9532 77,103756334
Department of Health,St. Helens&Knowsley Hospitals NHS Trust,30/06/2023,Mobile Phones,LIBRARY SERVICES,VODAFONE LTD,47443244,6.00,RG14 5FF,GB 569 9532 77,103756334
Department of Health,St. Helens&Knowsley Hospitals NHS Trust,30/06/2023,Mobile Phones,LIBRARY SERVICES,VODAFONE LTD,47443244,30.00,RG14 5FF,GB 569 9532 77,103756334
Department of Health,St. Helens&Knowsley Hospitals NHS Trust,30/06/2023,Mobile Phones,MARSHALLS CROSS MEDICAL CENTRE,VODAFONE LTD,47443244,6.00,RG14 5FF,GB 569 9532 77,103756334
Department of Health,St. Helens&Knowsley Hospitals NHS Trust,30/06/2023,Mobile Phones,MARSHALLS CROSS MEDICAL CENTRE,VODAFONE LTD,47443244,30.00,RG14 5FF,GB 569 9532 77,103756334
Department of Health,St. Helens&Knowsley Hospitals NHS Trust,30/06/2023,Mobile Phones,MATERNITY THEATRES EMERGENCY WEEKDAYS,VODAFONE LTD,47443244,1.50,RG14 5FF,GB 569 9532 77,103756334
Department of Health,St. Helens&Knowsley Hospitals NHS Trust,30/06/2023,Mobile Phones,MATERNITY THEATRES EMERGENCY WEEKDAYS,VODAFONE LTD,47443244,7.50,RG14 5FF,GB 569 9532 77,103756334
Department of Health,St. Helens&Knowsley Hospitals NHS Trust,30/06/2023,Mobile Phones,MED SECRETARIES BAND 3,VODAFONE LTD,47443244,7.49,RG14 5FF,GB 569 9532 77,103756334
Department of Health,St. Helens&Knowsley Hospitals NHS Trust,30/06/2023,Mobile Phones,MED SECRETARIES BAND 3,VODAFONE LTD,47443244,37.50,RG14 5FF,GB 569 9532 77,103756334
Department of Health,St. Helens&Knowsley Hospitals NHS Trust,30/06/2023,Mobile Phones,MEDICAL CARE GROUP MGT,VODAFONE LTD,47443244,575.56,RG14 5FF,GB 569 9532 77,103756334
Department of Health,St. Helens&Knowsley Hospitals NHS Trust,30/06/2023,Mobile Phones,MEDICAL CARE GROUP MGT,VODAFONE LTD,47443244,"2,880.17",RG14 5FF,GB 569 9532 77,103756334
Department of Health,St. Helens&Knowsley Hospitals NHS Trust,30/06/2023,Mobile Phones,MET TEAM,VODAFONE LTD,47443244,17.99,RG14 5FF,GB 569 9532 77,103756334
Department of Health,St. Helens&Knowsley Hospitals NHS Trust,30/06/2023,Mobile Phones,MET TEAM,VODAFONE LTD,47443244,90.00,RG14 5FF,GB 569 9532 77,103756334
Department of Health,St. Helens&Knowsley Hospitals NHS Trust,30/06/2023,Mobile Phones,MGMT SPECIALIST MIDWIVES,VODAFONE LTD,47443244,70.40,RG14 5FF,GB 569 9532 77,103756334
Department of Health,St. Helens&Knowsley Hospitals NHS Trust,30/06/2023,Mobile Phones,MGMT SPECIALIST MIDWIVES,VODAFONE LTD,47443244,352.31,RG14 5FF,GB 569 9532 77,103756334
Department of Health,St. Helens&Knowsley Hospitals NHS Trust,30/06/2023,Mobile Phones,MICROBIOLOGY DEPT,VODAFONE LTD,47443244,65.42,RG14 5FF,GB 569 9532 77,103756334
Department of Health,St. Helens&Knowsley Hospitals NHS Trust,30/06/2023,Mobile Phones,MICROBIOLOGY DEPT,VODAFONE LTD,47443244,327.35,RG14 5FF,GB 569 9532 77,103756334
Department of Health,St. Helens&Knowsley Hospitals NHS Trust,30/06/2023,Mobile Phones,MICROBIOLOGY MED STAFF,VODAFONE LTD,47443244,11.99,RG14 5FF,GB 569 9532 77,103756334
Department of Health,St. Helens&Knowsley Hospitals NHS Trust,30/06/2023,Mobile Phones,MICROBIOLOGY MED STAFF,VODAFONE LTD,47443244,60.00,RG14 5FF,GB 569 9532 77,103756334
Department of Health,St. Helens&Knowsley Hospitals NHS Trust,30/06/2023,Mobile Phones,MMDA PROGRAMME COSTS - SHARED SERVICES,VODAFONE LTD,47443244,817.03,RG14 5FF,GB 569 9532 77,103756334
Department of Health,St. Helens&Knowsley Hospitals NHS Trust,30/06/2023,Mobile Phones,MMDA PROGRAMME COSTS - SHARED SERVICES,VODAFONE LTD,47443244,"4,088.45",RG14 5FF,GB 569 9532 77,103756334
Department of Health,St. Helens&Knowsley Hospitals NHS Trust,30/06/2023,Mobile Phones,MVP LEAD EMPLOYER SUPPORT,VODAFONE LTD,47443244,24.98,RG14 5FF,GB 569 9532 77,103756334
Department of Health,St. Helens&Knowsley Hospitals NHS Trust,30/06/2023,Mobile Phones,MVP LEAD EMPLOYER SUPPORT,VODAFONE LTD,47443244,125.00,RG14 5FF,GB 569 9532 77,103756334
Department of Health,St. Helens&Knowsley Hospitals NHS Trust,30/06/2023,Mobile Phones,NEWTON HOSPITAL OP,VODAFONE LTD,47443244,10.99,RG14 5FF,GB 569 9532 77,103756334
Department of Health,St. Helens&Knowsley Hospitals NHS Trust,30/06/2023,Mobile Phones,NEWTON HOSPITAL OP,VODAFONE LTD,47443244,55.00,RG14 5FF,GB 569 9532 77,103756334
Department of Health,St. Helens&Knowsley Hospitals NHS Trust,30/06/2023,Mobile Phones,NEWTON INTERMEDIATE CARE SERVICE,VODAFONE LTD,47443244,56.05,RG14 5FF,GB 569 9532 77,103756334
Department of Health,St. Helens&Knowsley Hospitals NHS Trust,30/06/2023,Mobile Phones,NEWTON INTERMEDIATE CARE SERVICE,VODAFONE LTD,47443244,280.50,RG14 5FF,GB 569 9532 77,103756334
Department of Health,St. Helens&Knowsley Hospitals NHS Trust,30/06/2023,Mobile Phones,NURSING ADMINISTRATION,VODAFONE LTD,47443244,105.73,RG14 5FF,GB 569 9532 77,103756334
Department of Health,St. Helens&Knowsley Hospitals NHS Trust,30/06/2023,Mobile Phones,NURSING ADMINISTRATION,VODAFONE LTD,47443244,529.07,RG14 5FF,GB 569 9532 77,103756334
Department of Health,St. Helens&Knowsley Hospitals NHS Trust,30/06/2023,Mobile Phones,NURSING DIRECTOR ADMIN STAFF,VODAFONE LTD,47443244,6.00,RG14 5FF,GB 569 9532 77,103756334
Department of Health,St. Helens&Knowsley Hospitals NHS Trust,30/06/2023,Mobile Phones,NURSING DIRECTOR ADMIN STAFF,VODAFONE LTD,47443244,30.00,RG14 5FF,GB 569 9532 77,103756334
Department of Health,St. Helens&Knowsley Hospitals NHS Trust,30/06/2023,Mobile Phones,OBS + GYNAE MEDICAL STAFF,VODAFONE LTD,47443244,17.99,RG14 5FF,GB 569 9532 77,103756334
Department of Health,St. Helens&Knowsley Hospitals NHS Trust,30/06/2023,Mobile Phones,OBS + GYNAE MEDICAL STAFF,VODAFONE LTD,47443244,90.00,RG14 5FF,GB 569 9532 77,103756334
Department of Health,St. Helens&Knowsley Hospitals NHS Trust,30/06/2023,Mobile Phones,OCCUPATIONAL HEALTH MED,VODAFONE LTD,47443244,16.49,RG14 5FF,GB 569 9532 77,103756334
Department of Health,St. Helens&Knowsley Hospitals NHS Trust,30/06/2023,Mobile Phones,OCCUPATIONAL HEALTH MED,VODAFONE LTD,47443244,82.50,RG14 5FF,GB 569 9532 77,103756334
Department of Health,St. Helens&Knowsley Hospitals NHS Trust,30/06/2023,Mobile Phones,OCCUPATIONAL HEALTH NURS,VODAFONE LTD,47443244,17.99,RG14 5FF,GB 569 9532 77,103756334
Department of Health,St. Helens&Knowsley Hospitals NHS Trust,30/06/2023,Mobile Phones,OCCUPATIONAL HEALTH NURS,VODAFONE LTD,47443244,90.00,RG14 5FF,GB 569 9532 77,103756334
Department of Health,St. Helens&Knowsley Hospitals NHS Trust,30/06/2023,Mobile Phones,OPHTH RENNIE EYE CLINIC,VODAFONE LTD,47443244,6.00,RG14 5FF,GB 569 9532 77,103756334
Department of Health,St. Helens&Knowsley Hospitals NHS Trust,30/06/2023,Mobile Phones,OPHTH RENNIE EYE CLINIC,VODAFONE LTD,47443244,30.00,RG14 5FF,GB 569 9532 77,103756334
Department of Health,St. Helens&Knowsley Hospitals NHS Trust,30/06/2023,Mobile Phones,ORGANISATIONAL L And D,VODAFONE LTD,47443244,1.50,RG14 5FF,GB 569 9532 77,103756334
Department of Health,St. Helens&Knowsley Hospitals NHS Trust,30/06/2023,Mobile Phones,ORGANISATIONAL L And D,VODAFONE LTD,47443244,7.50,RG14 5FF,GB 569 9532 77,103756334
Department of Health,St. Helens&Knowsley Hospitals NHS Trust,30/06/2023,Mobile Phones,ORTHOPAEDIC MEDICAL STAFF,VODAFONE LTD,47443244,6.00,RG14 5FF,GB 569 9532 77,103756334
Department of Health,St. Helens&Knowsley Hospitals NHS Trust,30/06/2023,Mobile Phones,ORTHOPAEDIC MEDICAL STAFF,VODAFONE LTD,47443244,30.00,RG14 5FF,GB 569 9532 77,103756334
Department of Health,St. Helens&Knowsley Hospitals NHS Trust,30/06/2023,Mobile Phones,ORTHOPTICS DEPARTMENT,VODAFONE LTD,47443244,17.99,RG14 5FF,GB 569 9532 77,103756334
Department of Health,St. Helens&Knowsley Hospitals NHS Trust,30/06/2023,Mobile Phones,ORTHOPTICS DEPARTMENT,VODAFONE LTD,47443244,90.00,RG14 5FF,GB 569 9532 77,103756334
Department of Health,St. Helens&Knowsley Hospitals NHS Trust,30/06/2023,Mobile Phones,OUTPATIENTS ST HELENS,VODAFONE LTD,47443244,12.44,RG14 5FF,GB 569 9532 77,103756334
Department of Health,St. Helens&Knowsley Hospitals NHS Trust,30/06/2023,Mobile Phones,OUTPATIENTS ST HELENS,VODAFONE LTD,47443244,62.26,RG14 5FF,GB 569 9532 77,103756334
Department of Health,St. Helens&Knowsley Hospitals NHS Trust,30/06/2023,Mobile Phones,PAED SPECIALIST NURSES,VODAFONE LTD,47443244,26.98,RG14 5FF,GB 569 9532 77,103756334
Department of Health,St. Helens&Knowsley Hospitals NHS Trust,30/06/2023,Mobile Phones,PAED SPECIALIST NURSES,VODAFONE LTD,47443244,135.00,RG14 5FF,GB 569 9532 77,103756334
Department of Health,St. Helens&Knowsley Hospitals NHS Trust,30/06/2023,Mobile Phones,PAEDIATRIC CONTINENCE,VODAFONE LTD,47443244,6.00,RG14 5FF,GB 569 9532 77,103756334
Department of Health,St. Helens&Knowsley Hospitals NHS Trust,30/06/2023,Mobile Phones,PAEDIATRIC CONTINENCE,VODAFONE LTD,47443244,30.00,RG14 5FF,GB 569 9532 77,103756334
Department of Health,St. Helens&Knowsley Hospitals NHS Trust,30/06/2023,Mobile Phones,PAEDIATRIC MEDICAL STAFF,VODAFONE LTD,47443244,1.50,RG14 5FF,GB 569 9532 77,103756334
Department of Health,St. Helens&Knowsley Hospitals NHS Trust,30/06/2023,Mobile Phones,PAEDIATRIC MEDICAL STAFF,VODAFONE LTD,47443244,7.50,RG14 5FF,GB 569 9532 77,103756334
Department of Health,St. Helens&Knowsley Hospitals NHS Trust,30/06/2023,Mobile Phones,PAEDIATRICS WARD CLERKS,VODAFONE LTD,47443244,1.50,RG14 5FF,GB 569 9532 77,103756334
Department of Health,St. Helens&Knowsley Hospitals NHS Trust,30/06/2023,Mobile Phones,PAEDIATRICS WARD CLERKS,VODAFONE LTD,47443244,7.50,RG14 5FF,GB 569 9532 77,103756334
Department of Health,St. Helens&Knowsley Hospitals NHS Trust,30/06/2023,Mobile Phones,PALLIATIVE CARE WHISTON,VODAFONE LTD,47443244,29.98,RG14 5FF,GB 569 9532 77,103756334
Department of Health,St. Helens&Knowsley Hospitals NHS Trust,30/06/2023,Mobile Phones,PALLIATIVE CARE WHISTON,VODAFONE LTD,47443244,150.00,RG14 5FF,GB 569 9532 77,103756334
Department of Health,St. Helens&Knowsley Hospitals NHS Trust,30/06/2023,Mobile Phones,PATHOLOGY GENERAL,VODAFONE LTD,47443244,109.41,RG14 5FF,GB 569 9532 77,103756334
Department of Health,St. Helens&Knowsley Hospitals NHS Trust,30/06/2023,Mobile Phones,PATHOLOGY GENERAL,VODAFONE LTD,47443244,547.50,RG14 5FF,GB 569 9532 77,103756334
Department of Health,St. Helens&Knowsley Hospitals NHS Trust,30/06/2023,Mobile Phones,PATIENT ACCESS MGMT,VODAFONE LTD,47443244,26.44,RG14 5FF,GB 569 9532 77,103756334
Department of Health,St. Helens&Knowsley Hospitals NHS Trust,30/06/2023,Mobile Phones,PATIENT ACCESS MGMT,VODAFONE LTD,47443244,132.30,RG14 5FF,GB 569 9532 77,103756334
Department of Health,St. Helens&Knowsley Hospitals NHS Trust,30/06/2023,Mobile Phones,PAYING PATIENTS,VODAFONE LTD,47443244,17.99,RG14 5FF,GB 569 9532 77,103756334
Department of Health,St. Helens&Knowsley Hospitals NHS Trust,30/06/2023,Mobile Phones,PAYING PATIENTS,VODAFONE LTD,47443244,90.00,RG14 5FF,GB 569 9532 77,103756334
Department of Health,St. Helens&Knowsley Hospitals NHS Trust,30/06/2023,Mobile Phones,PAYROLL SERVICES,VODAFONE LTD,47443244,6.00,RG14 5FF,GB 569 9532 77,103756334
Department of Health,St. Helens&Knowsley Hospitals NHS Trust,30/06/2023,Mobile Phones,PAYROLL SERVICES,VODAFONE LTD,47443244,30.00,RG14 5FF,GB 569 9532 77,103756334
Department of Health,St. Helens&Knowsley Hospitals NHS Trust,30/06/2023,Mobile Phones,PFI DESIGN + CONSTRUCTION,VODAFONE LTD,47443244,23.98,RG14 5FF,GB 569 9532 77,103756334
Department of Health,St. Helens&Knowsley Hospitals NHS Trust,30/06/2023,Mobile Phones,PFI DESIGN + CONSTRUCTION,VODAFONE LTD,47443244,120.00,RG14 5FF,GB 569 9532 77,103756334
Department of Health,St. Helens&Knowsley Hospitals NHS Trust,30/06/2023,Mobile Phones,PFI ENABLING WORKS,VODAFONE LTD,47443244,6.02,RG14 5FF,GB 569 9532 77,103756334
Department of Health,St. Helens&Knowsley Hospitals NHS Trust,30/06/2023,Mobile Phones,PFI ENABLING WORKS,VODAFONE LTD,47443244,30.12,RG14 5FF,GB 569 9532 77,103756334
Department of Health,St. Helens&Knowsley Hospitals NHS Trust,30/06/2023,Mobile Phones,PHARMACY GENERAL,VODAFONE LTD,47443244,122.93,RG14 5FF,GB 569 9532 77,103756334
Department of Health,St. Helens&Knowsley Hospitals NHS Trust,30/06/2023,Mobile Phones,PHARMACY GENERAL,VODAFONE LTD,47443244,615.15,RG14 5FF,GB 569 9532 77,103756334
Department of Health,St. Helens&Knowsley Hospitals NHS Trust,30/06/2023,Mobile Phones,PHLEBOTOMY WHISTON,VODAFONE LTD,47443244,20.04,RG14 5FF,GB 569 9532 77,103756334
Department of Health,St. Helens&Knowsley Hospitals NHS Trust,30/06/2023,Mobile Phones,PHLEBOTOMY WHISTON,VODAFONE LTD,47443244,100.30,RG14 5FF,GB 569 9532 77,103756334
Department of Health,St. Helens&Knowsley Hospitals NHS Trust,30/06/2023,Mobile Phones,PROJECTS And TRAINING,VODAFONE LTD,47443244,61.90,RG14 5FF,GB 569 9532 77,103756334
Department of Health,St. Helens&Knowsley Hospitals NHS Trust,30/06/2023,Mobile Phones,PROJECTS And TRAINING,VODAFONE LTD,47443244,309.75,RG14 5FF,GB 569 9532 77,103756334
Department of Health,St. Helens&Knowsley Hospitals NHS Trust,30/06/2023,Mobile Phones,RADIOGRAPHY WHISTON,VODAFONE LTD,47443244,12.46,RG14 5FF,GB 569 9532 77,103756334
Department of Health,St. Helens&Knowsley Hospitals NHS Trust,30/06/2023,Mobile Phones,RADIOGRAPHY WHISTON,VODAFONE LTD,47443244,62.35,RG14 5FF,GB 569 9532 77,103756334
Department of Health,St. Helens&Knowsley Hospitals NHS Trust,30/06/2023,Mobile Phones,RADIOLOGY MEDICAL STAFF,VODAFONE LTD,47443244,6.00,RG14 5FF,GB 569 9532 77,103756334
Department of Health,St. Helens&Knowsley Hospitals NHS Trust,30/06/2023,Mobile Phones,RADIOLOGY MEDICAL STAFF,VODAFONE LTD,47443244,30.00,RG14 5FF,GB 569 9532 77,103756334
Department of Health,St. Helens&Knowsley Hospitals NHS Trust,30/06/2023,Mobile Phones,RD AND I,VODAFONE LTD,47443244,31.66,RG14 5FF,GB 569 9532 77,103756334
Department of Health,St. Helens&Knowsley Hospitals NHS Trust,30/06/2023,Mobile Phones,RD AND I,VODAFONE LTD,47443244,158.41,RG14 5FF,GB 569 9532 77,103756334
Department of Health,St. Helens&Knowsley Hospitals NHS Trust,30/06/2023,Mobile Phones,REABLEMENT TEAM,VODAFONE LTD,47443244,24.18,RG14 5FF,GB 569 9532 77,103756334
Department of Health,St. Helens&Knowsley Hospitals NHS Trust,30/06/2023,Mobile Phones,REABLEMENT TEAM,VODAFONE LTD,47443244,121.00,RG14 5FF,GB 569 9532 77,103756334
Department of Health,St. Helens&Knowsley Hospitals NHS Trust,30/06/2023,Mobile Phones,REGIONAL CANCER TRANSFORMATION,VODAFONE LTD,47443244,93.72,RG14 5FF,GB 569 9532 77,103756334
Department of Health,St. Helens&Knowsley Hospitals NHS Trust,30/06/2023,Mobile Phones,REGIONAL CANCER TRANSFORMATION,VODAFONE LTD,47443244,468.96,RG14 5FF,GB 569 9532 77,103756334
Department of Health,St. Helens&Knowsley Hospitals NHS Trust,30/06/2023,Mobile Phones,REGIONAL VACCINATION CENTRE,VODAFONE LTD,47443244,0.47,RG14 5FF,GB 569 9532 77,103756334
Department of Health,St. Helens&Knowsley Hospitals NHS Trust,30/06/2023,Mobile Phones,REGIONAL VACCINATION CENTRE,VODAFONE LTD,47443244,2.34,RG14 5FF,GB 569 9532 77,103756334
Department of Health,St. Helens&Knowsley Hospitals NHS Trust,30/06/2023,Mobile Phones,RESPIRATORY NURSING,VODAFONE LTD,47443244,35.97,RG14 5FF,GB 569 9532 77,103756334
Department of Health,St. Helens&Knowsley Hospitals NHS Trust,30/06/2023,Mobile Phones,RESPIRATORY NURSING,VODAFONE LTD,47443244,180.00,RG14 5FF,GB 569 9532 77,103756334
Department of Health,St. Helens&Knowsley Hospitals NHS Trust,30/06/2023,Mobile Phones,RESPIRATORY SNR MEDICAL,VODAFONE LTD,47443244,60.95,RG14 5FF,GB 569 9532 77,103756334
Department of Health,St. Helens&Knowsley Hospitals NHS Trust,30/06/2023,Mobile Phones,RESPIRATORY SNR MEDICAL,VODAFONE LTD,47443244,305.00,RG14 5FF,GB 569 9532 77,103756334
Department of Health,St. Helens&Knowsley Hospitals NHS Trust,30/06/2023,Mobile Phones,RESUSCITATION TRAINING,VODAFONE LTD,47443244,6.00,RG14 5FF,GB 569 9532 77,103756334
Department of Health,St. Helens&Knowsley Hospitals NHS Trust,30/06/2023,Mobile Phones,RESUSCITATION TRAINING,VODAFONE LTD,47443244,30.00,RG14 5FF,GB 569 9532 77,103756334
Department of Health,St. Helens&Knowsley Hospitals NHS Trust,30/06/2023,Mobile Phones,SAFEGUARDING,VODAFONE LTD,47443244,13.51,RG14 5FF,GB 569 9532 77,103756334
Department of Health,St. Helens&Knowsley Hospitals NHS Trust,30/06/2023,Mobile Phones,SAFEGUARDING,VODAFONE LTD,47443244,67.62,RG14 5FF,GB 569 9532 77,103756334
Department of Health,St. Helens&Knowsley Hospitals NHS Trust,30/06/2023,Mobile Phones,SANDERSON SUITE GENERAL SURGERY,VODAFONE LTD,47443244,18.44,RG14 5FF,GB 569 9532 77,103756334
Department of Health,St. Helens&Knowsley Hospitals NHS Trust,30/06/2023,Mobile Phones,SANDERSON SUITE GENERAL SURGERY,VODAFONE LTD,47443244,92.26,RG14 5FF,GB 569 9532 77,103756334
Department of Health,St. Helens&Knowsley Hospitals NHS Trust,30/06/2023,Mobile Phones,SECURITY SERVICES,VODAFONE LTD,47443244,41.97,RG14 5FF,GB 569 9532 77,103756334
Department of Health,St. Helens&Knowsley Hospitals NHS Trust,30/06/2023,Mobile Phones,SECURITY SERVICES,VODAFONE LTD,47443244,210.00,RG14 5FF,GB 569 9532 77,103756334
Department of Health,St. Helens&Knowsley Hospitals NHS Trust,30/06/2023,Mobile Phones,SEDDON SUITE TRAUMA REHAB UNIT,VODAFONE LTD,47443244,7.49,RG14 5FF,GB 569 9532 77,103756334
Department of Health,St. Helens&Knowsley Hospitals NHS Trust,30/06/2023,Mobile Phones,SEDDON SUITE TRAUMA REHAB UNIT,VODAFONE LTD,47443244,37.50,RG14 5FF,GB 569 9532 77,103756334
Department of Health,St. Helens&Knowsley Hospitals NHS Trust,30/06/2023,Mobile Phones,SEPSIS,VODAFONE LTD,47443244,6.00,RG14 5FF,GB 569 9532 77,103756334
Department of Health,St. Helens&Knowsley Hospitals NHS Trust,30/06/2023,Mobile Phones,SEPSIS,VODAFONE LTD,47443244,30.00,RG14 5FF,GB 569 9532 77,103756334
Department of Health,St. Helens&Knowsley Hospitals NHS Trust,30/06/2023,Mobile Phones,SERV INCR 4 TEACHING-SIFT,VODAFONE LTD,47443244,35.97,RG14 5FF,GB 569 9532 77,103756334
Department of Health,St. Helens&Knowsley Hospitals NHS Trust,30/06/2023,Mobile Phones,SERV INCR 4 TEACHING-SIFT,VODAFONE LTD,47443244,180.00,RG14 5FF,GB 569 9532 77,103756334
Department of Health,St. Helens&Knowsley Hospitals NHS Trust,30/06/2023,Mobile Phones,SERVICE DELIVERY INFRASTRUCTURE,VODAFONE LTD,47443244,76.76,RG14 5FF,GB 569 9532 77,103756334
Department of Health,St. Helens&Knowsley Hospitals NHS Trust,30/06/2023,Mobile Phones,SERVICE DELIVERY INFRASTRUCTURE,VODAFONE LTD,47443244,384.10,RG14 5FF,GB 569 9532 77,103756334
Department of Health,St. Helens&Knowsley Hospitals NHS Trust,30/06/2023,Mobile Phones,SERVICE DELIVERY OPERATIONS,VODAFONE LTD,47443244,108.14,RG14 5FF,GB 569 9532 77,103756334
Department of Health,St. Helens&Knowsley Hospitals NHS Trust,30/06/2023,Mobile Phones,SERVICE DELIVERY OPERATIONS,VODAFONE LTD,47443244,541.14,RG14 5FF,GB 569 9532 77,103756334
Department of Health,St. Helens&Knowsley Hospitals NHS Trust,30/06/2023,Mobile Phones,SEXUAL HEALTH,VODAFONE LTD,47443244,114.15,RG14 5FF,GB 569 9532 77,103756334
Department of Health,St. Helens&Knowsley Hospitals NHS Trust,30/06/2023,Mobile Phones,SEXUAL HEALTH,VODAFONE LTD,47443244,571.23,RG14 5FF,GB 569 9532 77,103756334
Department of Health,St. Helens&Knowsley Hospitals NHS Trust,30/06/2023,Mobile Phones,SHARED CARE RECORD - ST HELENS HEALTH ECONOMY,VODAFONE LTD,47443244,19.18,RG14 5FF,GB 569 9532 77,103756334
Department of Health,St. Helens&Knowsley Hospitals NHS Trust,30/06/2023,Mobile Phones,SHARED CARE RECORD - ST HELENS HEALTH ECONOMY,VODAFONE LTD,47443244,95.96,RG14 5FF,GB 569 9532 77,103756334
Department of Health,St. Helens&Knowsley Hospitals NHS Trust,30/06/2023,Mobile Phones,SOHT BLOOD SCIENCES,VODAFONE LTD,47443244,1.50,RG14 5FF,GB 569 9532 77,103756334
Department of Health,St. Helens&Knowsley Hospitals NHS Trust,30/06/2023,Mobile Phones,SOHT BLOOD SCIENCES,VODAFONE LTD,47443244,7.50,RG14 5FF,GB 569 9532 77,103756334
Department of Health,St. Helens&Knowsley Hospitals NHS Trust,30/06/2023,Mobile Phones,SOHT PHLEBOTOMY,VODAFONE LTD,47443244,29.98,RG14 5FF,GB 569 9532 77,103756334
Department of Health,St. Helens&Knowsley Hospitals NHS Trust,30/06/2023,Mobile Phones,SOHT PHLEBOTOMY,VODAFONE LTD,47443244,150.00,RG14 5FF,GB 569 9532 77,103756334
Department of Health,St. Helens&Knowsley Hospitals NHS Trust,30/06/2023,Mobile Phones,SOUTH TREATMENT ROOMS,VODAFONE LTD,47443244,11.07,RG14 5FF,GB 569 9532 77,103756334
Department of Health,St. Helens&Knowsley Hospitals NHS Trust,30/06/2023,Mobile Phones,SOUTH TREATMENT ROOMS,VODAFONE LTD,47443244,55.42,RG14 5FF,GB 569 9532 77,103756334
Department of Health,St. Helens&Knowsley Hospitals NHS Trust,30/06/2023,Mobile Phones,ST HELENS COMMUNITY PHLEBOTOMY,VODAFONE LTD,47443244,17.99,RG14 5FF,GB 569 9532 77,103756334
Department of Health,St. Helens&Knowsley Hospitals NHS Trust,30/06/2023,Mobile Phones,ST HELENS COMMUNITY PHLEBOTOMY,VODAFONE LTD,47443244,90.00,RG14 5FF,GB 569 9532 77,103756334
Department of Health,St. Helens&Knowsley Hospitals NHS Trust,30/06/2023,Mobile Phones,ST HELENS CONTACT CARE IC THERAPY TEAM,VODAFONE LTD,47443244,53.10,RG14 5FF,GB 569 9532 77,103756334
Department of Health,St. Helens&Knowsley Hospitals NHS Trust,30/06/2023,Mobile Phones,ST HELENS CONTACT CARE IC THERAPY TEAM,VODAFONE LTD,47443244,265.70,RG14 5FF,GB 569 9532 77,103756334
Department of Health,St. Helens&Knowsley Hospitals NHS Trust,30/06/2023,Mobile Phones,ST HELENS CONTACT CARES REABLEMENT TEAM,VODAFONE LTD,47443244,75.65,RG14 5FF,GB 569 9532 77,103756334
Department of Health,St. Helens&Knowsley Hospitals NHS Trust,30/06/2023,Mobile Phones,ST HELENS CONTACT CARES REABLEMENT TEAM,VODAFONE LTD,47443244,378.55,RG14 5FF,GB 569 9532 77,103756334
Department of Health,St. Helens&Knowsley Hospitals NHS Trust,30/06/2023,Mobile Phones,ST HELENS REABLEMENT,VODAFONE LTD,47443244,1.50,RG14 5FF,GB 569 9532 77,103756334
Department of Health,St. Helens&Knowsley Hospitals NHS Trust,30/06/2023,Mobile Phones,ST HELENS REABLEMENT,VODAFONE LTD,47443244,7.50,RG14 5FF,GB 569 9532 77,103756334
Department of Health,St. Helens&Knowsley Hospitals NHS Trust,30/06/2023,Mobile Phones,ST HELENS UTC,VODAFONE LTD,47443244,18.05,RG14 5FF,GB 569 9532 77,103756334
Department of Health,St. Helens&Knowsley Hospitals NHS Trust,30/06/2023,Mobile Phones,ST HELENS UTC,VODAFONE LTD,47443244,90.30,RG14 5FF,GB 569 9532 77,103756334
Department of Health,St. Helens&Knowsley Hospitals NHS Trust,30/06/2023,Mobile Phones,STROKE/REHAB NURSING,VODAFONE LTD,47443244,29.98,RG14 5FF,GB 569 9532 77,103756334
Department of Health,St. Helens&Knowsley Hospitals NHS Trust,30/06/2023,Mobile Phones,STROKE/REHAB NURSING,VODAFONE LTD,47443244,150.00,RG14 5FF,GB 569 9532 77,103756334
Department of Health,St. Helens&Knowsley Hospitals NHS Trust,30/06/2023,Mobile Phones,SURGICAL CARE MANAGEMENT,VODAFONE LTD,47443244,115.01,RG14 5FF,GB 569 9532 77,103756334
Department of Health,St. Helens&Knowsley Hospitals NHS Trust,30/06/2023,Mobile Phones,SURGICAL CARE MANAGEMENT,VODAFONE LTD,47443244,575.54,RG14 5FF,GB 569 9532 77,103756334
Department of Health,St. Helens&Knowsley Hospitals NHS Trust,30/06/2023,Mobile Phones,SURGICAL CARE SECS,VODAFONE LTD,47443244,11.99,RG14 5FF,GB 569 9532 77,103756334
Department of Health,St. Helens&Knowsley Hospitals NHS Trust,30/06/2023,Mobile Phones,SURGICAL CARE SECS,VODAFONE LTD,47443244,60.00,RG14 5FF,GB 569 9532 77,103756334
Department of Health,St. Helens&Knowsley Hospitals NHS Trust,30/06/2023,Mobile Phones,THEATRES ANAESTHETICS WH,VODAFONE LTD,47443244,11.99,RG14 5FF,GB 569 9532 77,103756334
Department of Health,St. Helens&Knowsley Hospitals NHS Trust,30/06/2023,Mobile Phones,THEATRES ANAESTHETICS WH,VODAFONE LTD,47443244,60.00,RG14 5FF,GB 569 9532 77,103756334
Department of Health,St. Helens&Knowsley Hospitals NHS Trust,30/06/2023,Mobile Phones,THEATRES BURNS + PLASTICS,VODAFONE LTD,47443244,13.49,RG14 5FF,GB 569 9532 77,103756334
Department of Health,St. Helens&Knowsley Hospitals NHS Trust,30/06/2023,Mobile Phones,THEATRES BURNS + PLASTICS,VODAFONE LTD,47443244,67.50,RG14 5FF,GB 569 9532 77,103756334
Department of Health,St. Helens&Knowsley Hospitals NHS Trust,30/06/2023,Mobile Phones,THEATRES DIRECTORATE MGT,VODAFONE LTD,47443244,92.89,RG14 5FF,GB 569 9532 77,103756334
Department of Health,St. Helens&Knowsley Hospitals NHS Trust,30/06/2023,Mobile Phones,THEATRES DIRECTORATE MGT,VODAFONE LTD,47443244,464.85,RG14 5FF,GB 569 9532 77,103756334
Department of Health,St. Helens&Knowsley Hospitals NHS Trust,30/06/2023,Mobile Phones,THEATRES ENT WHISTON,VODAFONE LTD,47443244,7.80,RG14 5FF,GB 569 9532 77,103756334
Department of Health,St. Helens&Knowsley Hospitals NHS Trust,30/06/2023,Mobile Phones,THEATRES ENT WHISTON,VODAFONE LTD,47443244,39.05,RG14 5FF,GB 569 9532 77,103756334
Department of Health,St. Helens&Knowsley Hospitals NHS Trust,30/06/2023,Mobile Phones,THEATRES GEN SURGERY/UROL,VODAFONE LTD,47443244,3.00,RG14 5FF,GB 569 9532 77,103756334
Department of Health,St. Helens&Knowsley Hospitals NHS Trust,30/06/2023,Mobile Phones,THEATRES GEN SURGERY/UROL,VODAFONE LTD,47443244,15.00,RG14 5FF,GB 569 9532 77,103756334
Department of Health,St. Helens&Knowsley Hospitals NHS Trust,30/06/2023,Mobile Phones,THEATRES MAIN ST HELEN'S,VODAFONE LTD,47443244,19.25,RG14 5FF,GB 569 9532 77,103756334
Department of Health,St. Helens&Knowsley Hospitals NHS Trust,30/06/2023,Mobile Phones,THEATRES MAIN ST HELEN'S,VODAFONE LTD,47443244,96.35,RG14 5FF,GB 569 9532 77,103756334
Department of Health,St. Helens&Knowsley Hospitals NHS Trust,30/06/2023,Mobile Phones,THEATRES MATERNITY WH,VODAFONE LTD,47443244,8.99,RG14 5FF,GB 569 9532 77,103756334
Department of Health,St. Helens&Knowsley Hospitals NHS Trust,30/06/2023,Mobile Phones,THEATRES MATERNITY WH,VODAFONE LTD,47443244,45.00,RG14 5FF,GB 569 9532 77,103756334
Department of Health,St. Helens&Knowsley Hospitals NHS Trust,30/06/2023,Mobile Phones,THEATRES MEDICAL STAFF,VODAFONE LTD,47443244,13.55,RG14 5FF,GB 569 9532 77,103756334
Department of Health,St. Helens&Knowsley Hospitals NHS Trust,30/06/2023,Mobile Phones,THEATRES MEDICAL STAFF,VODAFONE LTD,47443244,67.80,RG14 5FF,GB 569 9532 77,103756334
Department of Health,St. Helens&Knowsley Hospitals NHS Trust,30/06/2023,Mobile Phones,THEATRES TRAU ORTHOPAEDIC,VODAFONE LTD,47443244,1.50,RG14 5FF,GB 569 9532 77,103756334
Department of Health,St. Helens&Knowsley Hospitals NHS Trust,30/06/2023,Mobile Phones,THEATRES TRAU ORTHOPAEDIC,VODAFONE LTD,47443244,7.50,RG14 5FF,GB 569 9532 77,103756334
Department of Health,St. Helens&Knowsley Hospitals NHS Trust,30/06/2023,Mobile Phones,THERAPY - A+E,VODAFONE LTD,47443244,140.52,RG14 5FF,GB 569 9532 77,103756334
Department of Health,St. Helens&Knowsley Hospitals NHS Trust,30/06/2023,Mobile Phones,THERAPY - A+E,VODAFONE LTD,47443244,703.15,RG14 5FF,GB 569 9532 77,103756334
Department of Health,St. Helens&Knowsley Hospitals NHS Trust,30/06/2023,Mobile Phones,THERAPY - ACUTE MEDICINE,VODAFONE LTD,47443244,6.00,RG14 5FF,GB 569 9532 77,103756334
Department of Health,St. Helens&Knowsley Hospitals NHS Trust,30/06/2023,Mobile Phones,THERAPY - ACUTE MEDICINE,VODAFONE LTD,47443244,30.00,RG14 5FF,GB 569 9532 77,103756334
Department of Health,St. Helens&Knowsley Hospitals NHS Trust,30/06/2023,Mobile Phones,THERAPY - AHP FACULTY PROJECT,VODAFONE LTD,47443244,6.00,RG14 5FF,GB 569 9532 77,103756334
Department of Health,St. Helens&Knowsley Hospitals NHS Trust,30/06/2023,Mobile Phones,THERAPY - AHP FACULTY PROJECT,VODAFONE LTD,47443244,30.00,RG14 5FF,GB 569 9532 77,103756334
Department of Health,St. Helens&Knowsley Hospitals NHS Trust,30/06/2023,Mobile Phones,THERAPY - DIETETICS,VODAFONE LTD,47443244,2.51,RG14 5FF,GB 569 9532 77,103756334
Department of Health,St. Helens&Knowsley Hospitals NHS Trust,30/06/2023,Mobile Phones,THERAPY - DIETETICS,VODAFONE LTD,47443244,12.58,RG14 5FF,GB 569 9532 77,103756334
Department of Health,St. Helens&Knowsley Hospitals NHS Trust,30/06/2023,Mobile Phones,THERAPY - MEDICINES FOR OLDER PEOPLE,VODAFONE LTD,47443244,1.50,RG14 5FF,GB 569 9532 77,103756334
Department of Health,St. Helens&Knowsley Hospitals NHS Trust,30/06/2023,Mobile Phones,THERAPY - MEDICINES FOR OLDER PEOPLE,VODAFONE LTD,47443244,7.50,RG14 5FF,GB 569 9532 77,103756334
Department of Health,St. Helens&Knowsley Hospitals NHS Trust,30/06/2023,Mobile Phones,THERAPY - SEDDON REHAB UNIT,VODAFONE LTD,47443244,6.00,RG14 5FF,GB 569 9532 77,103756334
Department of Health,St. Helens&Knowsley Hospitals NHS Trust,30/06/2023,Mobile Phones,THERAPY - SEDDON REHAB UNIT,VODAFONE LTD,47443244,30.00,RG14 5FF,GB 569 9532 77,103756334
Department of Health,St. Helens&Knowsley Hospitals NHS Trust,30/06/2023,Mobile Phones,THERAPY MANAGEMENT & ADMIN.,VODAFONE LTD,47443244,148.01,RG14 5FF,GB 569 9532 77,103756334
Department of Health,St. Helens&Knowsley Hospitals NHS Trust,30/06/2023,Mobile Phones,THERAPY MANAGEMENT & ADMIN.,VODAFONE LTD,47443244,740.63,RG14 5FF,GB 569 9532 77,103756334
Department of Health,St. Helens&Knowsley Hospitals NHS Trust,30/06/2023,Mobile Phones,TISSUE VIABILITY,VODAFONE LTD,47443244,1.50,RG14 5FF,GB 569 9532 77,103756334
Department of Health,St. Helens&Knowsley Hospitals NHS Trust,30/06/2023,Mobile Phones,TISSUE VIABILITY,VODAFONE LTD,47443244,7.50,RG14 5FF,GB 569 9532 77,103756334
Department of Health,St. Helens&Knowsley Hospitals NHS Trust,30/06/2023,Mobile Phones,TRANSFER LOUNGE,VODAFONE LTD,47443244,1.50,RG14 5FF,GB 569 9532 77,103756334
Department of Health,St. Helens&Knowsley Hospitals NHS Trust,30/06/2023,Mobile Phones,TRANSFER LOUNGE,VODAFONE LTD,47443244,7.50,RG14 5FF,GB 569 9532 77,103756334
Department of Health,St. Helens&Knowsley Hospitals NHS Trust,30/06/2023,Mobile Phones,TRAUMA ORTHOPAEDICS,VODAFONE LTD,47443244,11.99,RG14 5FF,GB 569 9532 77,103756334
Department of Health,St. Helens&Knowsley Hospitals NHS Trust,30/06/2023,Mobile Phones,TRAUMA ORTHOPAEDICS,VODAFONE LTD,47443244,60.01,RG14 5FF,GB 569 9532 77,103756334
Department of Health,St. Helens&Knowsley Hospitals NHS Trust,30/06/2023,Mobile Phones,TRUST IT SYSTEMS,VODAFONE LTD,47443244,13.49,RG14 5FF,GB 569 9532 77,103756334
Department of Health,St. Helens&Knowsley Hospitals NHS Trust,30/06/2023,Mobile Phones,TRUST IT SYSTEMS,VODAFONE LTD,47443244,67.50,RG14 5FF,GB 569 9532 77,103756334
Department of Health,St. Helens&Knowsley Hospitals NHS Trust,30/06/2023,Mobile Phones,TRUST RECHARGES,VODAFONE LTD,47443244,236.78,RG14 5FF,GB 569 9532 77,103756334
Department of Health,St. Helens&Knowsley Hospitals NHS Trust,30/06/2023,Mobile Phones,TRUST RECHARGES,VODAFONE LTD,47443244,"1,184.87",RG14 5FF,GB 569 9532 77,103756334
Department of Health,St. Helens&Knowsley Hospitals NHS Trust,30/06/2023,Mobile Phones,UROLOGY MEDICAL STAFF,VODAFONE LTD,47443244,62.47,RG14 5FF,GB 569 9532 77,103756334
Department of Health,St. Helens&Knowsley Hospitals NHS Trust,30/06/2023,Mobile Phones,UROLOGY MEDICAL STAFF,VODAFONE LTD,47443244,312.62,RG14 5FF,GB 569 9532 77,103756334
Department of Health,St. Helens&Knowsley Hospitals NHS Trust,30/06/2023,Mobile Phones,UROLOGY SUITE,VODAFONE LTD,47443244,19.48,RG14 5FF,GB 569 9532 77,103756334
Department of Health,St. Helens&Knowsley Hospitals NHS Trust,30/06/2023,Mobile Phones,UROLOGY SUITE,VODAFONE LTD,47443244,97.50,RG14 5FF,GB 569 9532 77,103756334
Department of Health,St. Helens&Knowsley Hospitals NHS Trust,30/06/2023,Mobile Phones,VOLUNTEERS,VODAFONE LTD,47443244,11.99,RG14 5FF,GB 569 9532 77,103756334
Department of Health,St. Helens&Knowsley Hospitals NHS Trust,30/06/2023,Mobile Phones,VOLUNTEERS,VODAFONE LTD,47443244,60.00,RG14 5FF,GB 569 9532 77,103756334
Department of Health,St. Helens&Knowsley Hospitals NHS Trust,30/06/2023,Mobile Phones,WARD 1A MCG,VODAFONE LTD,47443244,16.05,RG14 5FF,GB 569 9532 77,103756334
Department of Health,St. Helens&Knowsley Hospitals NHS Trust,30/06/2023,Mobile Phones,WARD 1A MCG,VODAFONE LTD,47443244,80.30,RG14 5FF,GB 569 9532 77,103756334
Department of Health,St. Helens&Knowsley Hospitals NHS Trust,30/06/2023,Mobile Phones,WARD 1B ACUTE MEDICAL UNIT,VODAFONE LTD,47443244,6.00,RG14 5FF,GB 569 9532 77,103756334
Department of Health,St. Helens&Knowsley Hospitals NHS Trust,30/06/2023,Mobile Phones,WARD 1B ACUTE MEDICAL UNIT,VODAFONE LTD,47443244,30.00,RG14 5FF,GB 569 9532 77,103756334
Department of Health,St. Helens&Knowsley Hospitals NHS Trust,30/06/2023,Mobile Phones,WARD 1C ACUTE MEDICAL UNIT,VODAFONE LTD,47443244,12.98,RG14 5FF,GB 569 9532 77,103756334
Department of Health,St. Helens&Knowsley Hospitals NHS Trust,30/06/2023,Mobile Phones,WARD 1C ACUTE MEDICAL UNIT,VODAFONE LTD,47443244,64.97,RG14 5FF,GB 569 9532 77,103756334
Department of Health,St. Helens&Knowsley Hospitals NHS Trust,30/06/2023,Mobile Phones,WARD 1E CORONARY CARE UNIT,VODAFONE LTD,47443244,6.00,RG14 5FF,GB 569 9532 77,103756334
Department of Health,St. Helens&Knowsley Hospitals NHS Trust,30/06/2023,Mobile Phones,WARD 1E CORONARY CARE UNIT,VODAFONE LTD,47443244,30.00,RG14 5FF,GB 569 9532 77,103756334
Department of Health,St. Helens&Knowsley Hospitals NHS Trust,30/06/2023,Mobile Phones,WARD 2B RESPIRATORY,VODAFONE LTD,47443244,24.98,RG14 5FF,GB 569 9532 77,103756334
Department of Health,St. Helens&Knowsley Hospitals NHS Trust,30/06/2023,Mobile Phones,WARD 2B RESPIRATORY,VODAFONE LTD,47443244,125.00,RG14 5FF,GB 569 9532 77,103756334
Department of Health,St. Helens&Knowsley Hospitals NHS Trust,30/06/2023,Mobile Phones,WARD 2C RESPIRATORY,VODAFONE LTD,47443244,11.99,RG14 5FF,GB 569 9532 77,103756334
Department of Health,St. Helens&Knowsley Hospitals NHS Trust,30/06/2023,Mobile Phones,WARD 2C RESPIRATORY,VODAFONE LTD,47443244,60.00,RG14 5FF,GB 569 9532 77,103756334
Department of Health,St. Helens&Knowsley Hospitals NHS Trust,30/06/2023,Mobile Phones,WARD 2D GENERAL MEDICINE,VODAFONE LTD,47443244,6.00,RG14 5FF,GB 569 9532 77,103756334
Department of Health,St. Helens&Knowsley Hospitals NHS Trust,30/06/2023,Mobile Phones,WARD 2D GENERAL MEDICINE,VODAFONE LTD,47443244,30.00,RG14 5FF,GB 569 9532 77,103756334
Department of Health,St. Helens&Knowsley Hospitals NHS Trust,30/06/2023,Mobile Phones,WARD 3A PLASTICS,VODAFONE LTD,47443244,79.10,RG14 5FF,GB 569 9532 77,103756334
Department of Health,St. Helens&Knowsley Hospitals NHS Trust,30/06/2023,Mobile Phones,WARD 3A PLASTICS,VODAFONE LTD,47443244,395.84,RG14 5FF,GB 569 9532 77,103756334
Department of Health,St. Helens&Knowsley Hospitals NHS Trust,30/06/2023,Mobile Phones,WARD 3ALPHA ORTHOPAEDICS,VODAFONE LTD,47443244,6.00,RG14 5FF,GB 569 9532 77,103756334
Department of Health,St. Helens&Knowsley Hospitals NHS Trust,30/06/2023,Mobile Phones,WARD 3ALPHA ORTHOPAEDICS,VODAFONE LTD,47443244,30.00,RG14 5FF,GB 569 9532 77,103756334
Department of Health,St. Helens&Knowsley Hospitals NHS Trust,30/06/2023,Mobile Phones,WARD 3B ORTHOPAEDICS,VODAFONE LTD,47443244,6.00,RG14 5FF,GB 569 9532 77,103756334
Department of Health,St. Helens&Knowsley Hospitals NHS Trust,30/06/2023,Mobile Phones,WARD 3B ORTHOPAEDICS,VODAFONE LTD,47443244,30.00,RG14 5FF,GB 569 9532 77,103756334
Department of Health,St. Helens&Knowsley Hospitals NHS Trust,30/06/2023,Mobile Phones,WARD 3C GENERAL MEDICINE,VODAFONE LTD,47443244,26.98,RG14 5FF,GB 569 9532 77,103756334
Department of Health,St. Helens&Knowsley Hospitals NHS Trust,30/06/2023,Mobile Phones,WARD 3C GENERAL MEDICINE,VODAFONE LTD,47443244,135.00,RG14 5FF,GB 569 9532 77,103756334
Department of Health,St. Helens&Knowsley Hospitals NHS Trust,30/06/2023,Mobile Phones,WARD 3D GASTROENTEROLOGY,VODAFONE LTD,47443244,19.18,RG14 5FF,GB 569 9532 77,103756334
Department of Health,St. Helens&Knowsley Hospitals NHS Trust,30/06/2023,Mobile Phones,WARD 3D GASTROENTEROLOGY,VODAFONE LTD,47443244,95.99,RG14 5FF,GB 569 9532 77,103756334
Department of Health,St. Helens&Knowsley Hospitals NHS Trust,30/06/2023,Mobile Phones,WARD 3E GYNAECOLOGY,VODAFONE LTD,47443244,41.97,RG14 5FF,GB 569 9532 77,103756334
Department of Health,St. Helens&Knowsley Hospitals NHS Trust,30/06/2023,Mobile Phones,WARD 3E GYNAECOLOGY,VODAFONE LTD,47443244,210.00,RG14 5FF,GB 569 9532 77,103756334
Department of Health,St. Helens&Knowsley Hospitals NHS Trust,30/06/2023,Mobile Phones,WARD 3F PAEDIATRICS,VODAFONE LTD,47443244,23.42,RG14 5FF,GB 569 9532 77,103756334
Department of Health,St. Helens&Knowsley Hospitals NHS Trust,30/06/2023,Mobile Phones,WARD 3F PAEDIATRICS,VODAFONE LTD,47443244,117.22,RG14 5FF,GB 569 9532 77,103756334
Department of Health,St. Helens&Knowsley Hospitals NHS Trust,30/06/2023,Mobile Phones,WARD 4A GENERAL SURGERY,VODAFONE LTD,47443244,11.99,RG14 5FF,GB 569 9532 77,103756334
Department of Health,St. Helens&Knowsley Hospitals NHS Trust,30/06/2023,Mobile Phones,WARD 4A GENERAL SURGERY,VODAFONE LTD,47443244,60.00,RG14 5FF,GB 569 9532 77,103756334
Department of Health,St. Helens&Knowsley Hospitals NHS Trust,30/06/2023,Mobile Phones,WARD 4B GENERAL SURGERY,VODAFONE LTD,47443244,6.00,RG14 5FF,GB 569 9532 77,103756334
Department of Health,St. Helens&Knowsley Hospitals NHS Trust,30/06/2023,Mobile Phones,WARD 4B GENERAL SURGERY,VODAFONE LTD,47443244,30.00,RG14 5FF,GB 569 9532 77,103756334
Department of Health,St. Helens&Knowsley Hospitals NHS Trust,30/06/2023,Mobile Phones,WARD 4C GENERAL SURGERY,VODAFONE LTD,47443244,6.00,RG14 5FF,GB 569 9532 77,103756334
Department of Health,St. Helens&Knowsley Hospitals NHS Trust,30/06/2023,Mobile Phones,WARD 4C GENERAL SURGERY,VODAFONE LTD,47443244,30.00,RG14 5FF,GB 569 9532 77,103756334
Department of Health,St. Helens&Knowsley Hospitals NHS Trust,30/06/2023,Mobile Phones,WARD 4D BURNS,VODAFONE LTD,47443244,19.36,RG14 5FF,GB 569 9532 77,103756334
Department of Health,St. Helens&Knowsley Hospitals NHS Trust,30/06/2023,Mobile Phones,WARD 4D BURNS,VODAFONE LTD,47443244,96.86,RG14 5FF,GB 569 9532 77,103756334
Department of Health,St. Helens&Knowsley Hospitals NHS Trust,30/06/2023,Mobile Phones,WARD 4F PAEDIATRICS,VODAFONE LTD,47443244,6.00,RG14 5FF,GB 569 9532 77,103756334
Department of Health,St. Helens&Knowsley Hospitals NHS Trust,30/06/2023,Mobile Phones,WARD 4F PAEDIATRICS,VODAFONE LTD,47443244,30.00,RG14 5FF,GB 569 9532 77,103756334
Department of Health,St. Helens&Knowsley Hospitals NHS Trust,30/06/2023,Mobile Phones,WARD 5A CARE OF THE ELDERLY,VODAFONE LTD,47443244,119.90,RG14 5FF,GB 569 9532 77,103756334
Department of Health,St. Helens&Knowsley Hospitals NHS Trust,30/06/2023,Mobile Phones,WARD 5A CARE OF THE ELDERLY,VODAFONE LTD,47443244,600.00,RG14 5FF,GB 569 9532 77,103756334
Department of Health,St. Helens&Knowsley Hospitals NHS Trust,30/06/2023,Mobile Phones,WARD 5B CARE OF THE ELDERLY,VODAFONE LTD,47443244,6.00,RG14 5FF,GB 569 9532 77,103756334
Department of Health,St. Helens&Knowsley Hospitals NHS Trust,30/06/2023,Mobile Phones,WARD 5B CARE OF THE ELDERLY,VODAFONE LTD,47443244,30.00,RG14 5FF,GB 569 9532 77,103756334
Department of Health,St. Helens&Knowsley Hospitals NHS Trust,30/06/2023,Mobile Phones,WARD 5C ACUTE STROKE UNIT (HASU),VODAFONE LTD,47443244,7.49,RG14 5FF,GB 569 9532 77,103756334
Department of Health,St. Helens&Knowsley Hospitals NHS Trust,30/06/2023,Mobile Phones,WARD 5C ACUTE STROKE UNIT (HASU),VODAFONE LTD,47443244,37.50,RG14 5FF,GB 569 9532 77,103756334
Department of Health,St. Helens&Knowsley Hospitals NHS Trust,30/06/2023,Mobile Phones,WARD 5D ASU,VODAFONE LTD,47443244,6.00,RG14 5FF,GB 569 9532 77,103756334
Department of Health,St. Helens&Knowsley Hospitals NHS Trust,30/06/2023,Mobile Phones,WARD 5D ASU,VODAFONE LTD,47443244,30.00,RG14 5FF,GB 569 9532 77,103756334
Department of Health,St. Helens&Knowsley Hospitals NHS Trust,30/06/2023,Mobile Phones,WHIS THEATRES ANCIL & EMERG SUP STAFF,VODAFONE LTD,47443244,63.65,RG14 5FF,GB 569 9532 77,103756334
Department of Health,St. Helens&Knowsley Hospitals NHS Trust,30/06/2023,Mobile Phones,WHIS THEATRES ANCIL & EMERG SUP STAFF,VODAFONE LTD,47443244,318.49,RG14 5FF,GB 569 9532 77,103756334
Department of Health,St. Helens&Knowsley Hospitals NHS Trust,30/06/2023,Mobile Phones,WHIS THEATRES EMERG WKDAY NGTS WKEND,VODAFONE LTD,47443244,6.00,RG14 5FF,GB 569 9532 77,103756334
Department of Health,St. Helens&Knowsley Hospitals NHS Trust,30/06/2023,Mobile Phones,WHIS THEATRES EMERG WKDAY NGTS WKEND,VODAFONE LTD,47443244,30.00,RG14 5FF,GB 569 9532 77,103756334
Department of Health,St. Helens&Knowsley Hospitals NHS Trust,30/06/2023,Mobile Phones,WHISTON EQUIPMENT POOL,VODAFONE LTD,47443244,17.99,RG14 5FF,GB 569 9532 77,103756334
Department of Health,St. Helens&Knowsley Hospitals NHS Trust,30/06/2023,Mobile Phones,WHISTON EQUIPMENT POOL,VODAFONE LTD,47443244,90.00,RG14 5FF,GB 569 9532 77,103756334
Department of Health,St. Helens&Knowsley Hospitals NHS Trust,30/06/2023,NonNHS Trade Pybls Curr,Balance Sheet,SUPPLY CHAIN COORDINATION LIMITED,47154151,"159,052.81",DE55 4QJ,290885854,1124049818
Department of Health,St. Helens&Knowsley Hospitals NHS Trust,30/06/2023,NonNHS Trade Pybls Curr,Balance Sheet,SUPPLY CHAIN COORDINATION LIMITED,47154157,"84,174.94",DE55 4QJ,290885854,1124053143
Department of Health,St. Helens&Knowsley Hospitals NHS Trust,30/06/2023,NonNHS Trade Pybls Curr,Balance Sheet,SUPPLY CHAIN COORDINATION LIMITED,47209988,"69,549.01",DE55 4QJ,290885854,1124058970
Department of Health,St. Helens&Knowsley Hospitals NHS Trust,30/06/2023,NonNHS Trade Pybls Curr,Balance Sheet,SUPPLY CHAIN COORDINATION LIMITED,47209989,"93,774.19",DE55 4QJ,290885854,1124056182
Department of Health,St. Helens&Knowsley Hospitals NHS Trust,30/06/2023,NonNHS Trade Pybls Curr,Balance Sheet,SUPPLY CHAIN COORDINATION LIMITED,47337805,"75,759.92",DE55 4QJ,290885854,1124066459
Department of Health,St. Helens&Knowsley Hospitals NHS Trust,30/06/2023,NonNHS Trade Pybls Curr,Balance Sheet,SUPPLY CHAIN COORDINATION LIMITED,47337807,"149,908.98",DE55 4QJ,290885854,1124061862
Department of Health,St. Helens&Knowsley Hospitals NHS Trust,30/06/2023,NonNHS Trade Pybls Curr,Balance Sheet,SUPPLY CHAIN COORDINATION LIMITED,47456852,"150,703.92",DE55 4QJ,290885854,1124070354
Department of Health,St. Helens&Knowsley Hospitals NHS Trust,30/06/2023,NonNHS Trade Pybls Curr,Balance Sheet,SUPPLY CHAIN COORDINATION LIMITED,47456853,"74,674.73",DE55 4QJ,290885854,1124073698
Department of Health,St. Helens&Knowsley Hospitals NHS Trust,30/06/2023,NonNHS Trade Pybls Curr,Balance Sheet,SUPPLY CHAIN COORDINATION LIMITED,47483479,"72,081.99",DE55 4QJ,290885854,1124081018
Department of Health,St. Helens&Knowsley Hospitals NHS Trust,30/06/2023,NonNHS Trade Pybls Curr,Balance Sheet,SUPPLY CHAIN COORDINATION LIMITED,47483487,"148,229.11",DE55 4QJ,290885854,1124076491
Department of Health,St. Helens&Knowsley Hospitals NHS Trust,30/06/2023,Other recvables - Current,Balance Sheet,VODAFONE LTD,47443244,6.00,RG14 5FF,GB 569 9532 77,103756334
Department of Health,St. Helens&Knowsley Hospitals NHS Trust,30/06/2023,Other recvables - Current,Balance Sheet,VODAFONE LTD,47443244,30.00,RG14 5FF,GB 569 9532 77,103756334
Department of Health,St. Helens&Knowsley Hospitals NHS Trust,30/06/2023,Postage & Carriage,HOTEL SERVICES MGT ST H,PITNEY BOWES LTD,47291778,"43,700.64",E14 5HU,213329300,BK131707
Department of Health,St. Helens&Knowsley Hospitals NHS Trust,30/06/2023,Postage & Carriage,HOTEL SERVICES MGT WHIST,PITNEY BOWES LTD,47512070,"43,390.74",E14 5HU,213329300,BK163012
Department of Health,St. Helens&Knowsley Hospitals NHS Trust,30/06/2023,Rent,COMMUNITY RENT,COMMUNITY HEALTH PARTNERSHIPS LTD,47456882,"212,408.22",M1 3LD,GB782562113,0060297773
Department of Health,St. Helens&Knowsley Hospitals NHS Trust,30/06/2023,Rent,COMMUNITY RENT,COMMUNITY HEALTH PARTNERSHIPS LTD,47456884,"212,408.22",M1 3LD,GB782562113,0060297775
Department of Health,St. Helens&Knowsley Hospitals NHS Trust,30/06/2023,Rent,COMMUNITY RENT,COMMUNITY HEALTH PARTNERSHIPS LTD,47456887,"212,408.22",M1 3LD,GB782562113,0060297772
Department of Health,St. Helens&Knowsley Hospitals NHS Trust,30/06/2023,Rent,COMMUNITY RENT,COMMUNITY HEALTH PARTNERSHIPS LTD,47483417,"212,408.22",M1 3LD,GB782562113,0060297774
Department of Health,St. Helens&Knowsley Hospitals NHS Trust,30/06/2023,Rent,COMMUNITY RENT,COMMUNITY HEALTH PARTNERSHIPS LTD,47512012,"36,998.60",M1 3LD,GB782562113,0060297845
Department of Health,St. Helens&Knowsley Hospitals NHS Trust,30/06/2023,Rent,COMMUNITY RENT,COMMUNITY HEALTH PARTNERSHIPS LTD,47512015,"27,206.96",M1 3LD,GB782562113,0060297877
Department of Health,St. Helens&Knowsley Hospitals NHS Trust,30/06/2023,Rent,COMMUNITY RENT,COMMUNITY HEALTH PARTNERSHIPS LTD,47512016,"27,206.96",M1 3LD,GB782562113,0060297879
Department of Health,St. Helens&Knowsley Hospitals NHS Trust,30/06/2023,Rent,COMMUNITY RENT,COMMUNITY HEALTH PARTNERSHIPS LTD,47512017,"36,998.60",M1 3LD,GB782562113,0060297846
Department of Health,St. Helens&Knowsley Hospitals NHS Trust,30/06/2023,Rent,COMMUNITY RENT,COMMUNITY HEALTH PARTNERSHIPS LTD,47512018,"36,998.60",M1 3LD,GB782562113,0060297847
Department of Health,St. Helens&Knowsley Hospitals NHS Trust,30/06/2023,Rent,COMMUNITY RENT,COMMUNITY HEALTH PARTNERSHIPS LTD,47512020,"27,206.96",M1 3LD,GB782562113,0060297878
Department of Health,St. Helens&Knowsley Hospitals NHS Trust,30/06/2023,Rent,COMMUNITY RENT,COMMUNITY HEALTH PARTNERSHIPS LTD,47512021,"36,998.60",M1 3LD,GB782562113,0060297848
Department of Health,St. Helens&Knowsley Hospitals NHS Trust,30/06/2023,Stocks Raw Materials,Balance Sheet,PHOENIX HEALTHCARE DISTRIBUTION LTD,47131335,"27,047.82",WA7 3DJ,109898228,APRIL30042023
Department of Health,St. Helens&Knowsley Hospitals NHS Trust,30/06/2023,Stocks Raw Materials,Balance Sheet,ALLIANCE HEALTHCARE DISTRIBUTION LTD,47131336,"77,884.93",KT9 1SN,GB386334767,APRIL30042023
Department of Health,St. Helens&Knowsley Hospitals NHS Trust,30/06/2023,Stocks Raw Materials,Balance Sheet,AAH PHARMACEUTICALS LTD,47131337,"89,263.76",WA2 8UH,GB 222 5169 87,APRIL30042023
Department of Health,St. Helens&Knowsley Hospitals NHS Trust,30/06/2023,Stocks Raw Materials,Balance Sheet,MAWDSLEY BROOKS & CO LTD,47131338,"34,252.27",M50 2PW,GB974809667,APRIL30042023
Department of Health,St. Helens&Knowsley Hospitals NHS Trust,30/06/2023,Stocks Raw Materials,Balance Sheet,AAH PHARMACEUTICALS LTD,47131341,"62,579.07",WA2 8UH,GB 222 5169 87,MAY07052023
Department of Health,St. Helens&Knowsley Hospitals NHS Trust,30/06/2023,Stocks Raw Materials,Balance Sheet,PHOENIX HEALTHCARE DISTRIBUTION LTD,47131342,"62,701.29",WA7 3DJ,109898228,MAY07052023
Department of Health,St. Helens&Knowsley Hospitals NHS Trust,30/06/2023,Stocks Raw Materials,Balance Sheet,MAWDSLEY BROOKS & CO LTD,47131343,"56,989.15",M50 2PW,GB974809667,MAY07052023
Department of Health,St. Helens&Knowsley Hospitals NHS Trust,30/06/2023,Stocks Raw Materials,Balance Sheet,ALLIANCE HEALTHCARE DISTRIBUTION LTD,47131345,"44,921.46",KT9 1SN,GB386334767,MAY07052023
Department of Health,St. Helens&Knowsley Hospitals NHS Trust,30/06/2023,Stocks Raw Materials,Balance Sheet,POLAR SPEED DISTRIBUTION LTD,47149564,"50,700.00",LU7 4WG,849745765,0001124542
Department of Health,St. Helens&Knowsley Hospitals NHS Trust,30/06/2023,Stocks Raw Materials,Balance Sheet,AMGEN LTD,47258048,"13,014.00",4801 EC,538389011,964568566
Department of Health,St. Helens&Knowsley Hospitals NHS Trust,30/06/2023,Stocks Raw Materials,Balance Sheet,AMGEN LTD,47258048,"17,820.00",4801 EC,538389011,964568566
Department of Health,St. Helens&Knowsley Hospitals NHS Trust,30/06/2023,Stocks Raw Materials,Balance Sheet,BAYER PLC,47258075,"31,935.96",RG14 1JA,641958611,824C496071
Department of Health,St. Helens&Knowsley Hospitals NHS Trust,30/06/2023,Stocks Raw Materials,Balance Sheet,SCIENSUS PHARMA SERVICES LTD,47331606,"160,964.38",DE14 1SZ,GB873342418,MAY14052023
Department of Health,St. Helens&Knowsley Hospitals NHS Trust,30/06/2023,Stocks Raw Materials,Balance Sheet,AAH PHARMACEUTICALS LTD,47331611,"18,011.20",WA2 8UH,GB 222 5169 87,MAY21052023
Department of Health,St. Helens&Knowsley Hospitals NHS Trust,30/06/2023,Stocks Raw Materials,Balance Sheet,AAH PHARMACEUTICALS LTD,47331611,"83,487.10",WA2 8UH,GB 222 5169 87,MAY21052023
Department of Health,St. Helens&Knowsley Hospitals NHS Trust,30/06/2023,Stocks Raw Materials,Balance Sheet,SCIENSUS PHARMA SERVICES LTD,47331613,"187,391.03",DE14 1SZ,GB873342418,MAY21052023
Department of Health,St. Helens&Knowsley Hospitals NHS Trust,30/06/2023,Stocks Raw Materials,Balance Sheet,JANSSEN CILAG LTD,47353979,4.80,HP12 4EG,207929448,930903975
Department of Health,St. Helens&Knowsley Hospitals NHS Trust,30/06/2023,Stocks Raw Materials,Balance Sheet,JANSSEN CILAG LTD,47353979,"47,692.80",HP12 4EG,207929448,930903975
Department of Health,St. Helens&Knowsley Hospitals NHS Trust,30/06/2023,Stocks Raw Materials,Balance Sheet,JANSSEN CILAG LTD,47353979,"1,589.76",HP12 4EG,207929448,930903975
Department of Health,St. Helens&Knowsley Hospitals NHS Trust,30/06/2023,Stocks Raw Materials,Balance Sheet,JANSSEN CILAG LTD,47353979,397.44,HP12 4EG,207929448,930903975
Department of Health,St. Helens&Knowsley Hospitals NHS Trust,30/06/2023,Stocks Raw Materials,Balance Sheet,AMGEN LTD,47354158,715.97,4801 EC,538389011,964570966
Department of Health,St. Helens&Knowsley Hospitals NHS Trust,30/06/2023,Stocks Raw Materials,Balance Sheet,AMGEN LTD,47354158,590.11,4801 EC,538389011,964570966
Department of Health,St. Helens&Knowsley Hospitals NHS Trust,30/06/2023,Stocks Raw Materials,Balance Sheet,AMGEN LTD,47354158,"31,185.00",4801 EC,538389011,964570966
Department of Health,St. Helens&Knowsley Hospitals NHS Trust,30/06/2023,Stocks Raw Materials,Balance Sheet,BAYER PLC,47428090,"26,461.22",RG14 1JA,641958611,824C498275
Department of Health,St. Helens&Knowsley Hospitals NHS Trust,30/06/2023,Stocks Raw Materials,Balance Sheet,ALLIANCE HEALTHCARE DISTRIBUTION LTD,47503297,"31,925.67",KT9 1SN,GB386334767,MAY14052023
Department of Health,St. Helens&Knowsley Hospitals NHS Trust,30/06/2023,Stocks Raw Materials,Balance Sheet,AAH PHARMACEUTICALS LTD,47503298,"12,389.90",WA2 8UH,GB 222 5169 87,MAY14052023
Department of Health,St. Helens&Knowsley Hospitals NHS Trust,30/06/2023,Stocks Raw Materials,Balance Sheet,ALLIANCE HEALTHCARE DISTRIBUTION LTD,47503299,"9,459.25",KT9 1SN,GB386334767,MAY21052023
Department of Health,St. Helens&Knowsley Hospitals NHS Trust,30/06/2023,Stocks Raw Materials,Balance Sheet,PHOENIX HEALTHCARE DISTRIBUTION LTD,47503302,"43,366.33",WA7 3DJ,109898228,MAY28052023
Department of Health,St. Helens&Knowsley Hospitals NHS Trust,30/06/2023,Stocks Raw Materials,Balance Sheet,SCIENSUS PHARMA SERVICES LTD,47503303,"62,683.99",DE14 1SZ,GB873342418,MAY28052023
Department of Health,St. Helens&Knowsley Hospitals NHS Trust,30/06/2023,Stocks Raw Materials,Balance Sheet,ALLIANCE HEALTHCARE DISTRIBUTION LTD,47503304,"77,016.55",KT9 1SN,GB386334767,MAY28052023
Department of Health,St. Helens&Knowsley Hospitals NHS Trust,30/06/2023,Stocks Raw Materials,Balance Sheet,BAYER PLC,47503774,"27,829.91",RG14 1JA,641958611,824C500718
Department of Health,St. Helens&Knowsley Hospitals NHS Trust,30/06/2023,Stocks Raw Materials,Balance Sheet,AMGEN LTD,47503806,"9,109.80",4801 EC,538389011,964572069
Department of Health,St. Helens&Knowsley Hospitals NHS Trust,30/06/2023,Stocks Raw Materials,Balance Sheet,AMGEN LTD,47503806,"26,235.00",4801 EC,538389011,964572069
Department of Health,St. Helens&Knowsley Hospitals NHS Trust,30/06/2023,Stocks Raw Materials,Balance Sheet,ALLOGA UK LTD,47503827,"13,500.00",DE55 2FH,GB 684 0905 20,SIN103828789
Department of Health,St. Helens&Knowsley Hospitals NHS Trust,30/06/2023,Stocks Raw Materials,Balance Sheet,ALLOGA UK LTD,47503827,"14,400.00",DE55 2FH,GB 684 0905 20,SIN103828789
Department of Health,St. Helens&Knowsley Hospitals NHS Trust,30/06/2023,Water,RATES/WATER WHISTON,WATER PLUS LTD,47426564,"37,093.87",S98 1DY,GB243663406,WPINV02241978
